Workbook

Sheet Recommended Penetration
B4: Arrow Weight | C4: 800 | D4: grain | E4: =C4*0.065 -> 52 | F4: g | H4: KE | I4: =C4*C5*C5/450240 -> 82.13397299 | J4: ft.lbs
B5: Arow Speed | C5: 215 | D5: fps | E5: =C5*12*2.54/100 -> 65.532 | F5: m/s | H5: mom | I5: =C4*C5/7000/32 -> 0.7678571429 | J5: slug feet per sec
B7: Hunting Point | C7: Height | D7: Length
B8: (inches) | C8: 0.4 | D8: 2 | E8: =IF(D8*C8>0,C8^2/(I25+D8),"") -> 0.04040820577 | F8: =C8*D8 -> 0.8 | G8: Penetration per category:
C9: 0.4 | D9: 2 | E9: =IF(D9*C9>0,C9^2/(I26+D9),"") -> 0.04040820577 | F9: =C9*D9 -> 0.8 | G9: Category | H9: Weight kg | I9: Min weight | J9: RPD | K9: RBL | L9: Dp | M9: % | N9: Max Distance (Yards)
F10: 0 | G10: #1 | H10: 60 | I10: 300 | J10: =H10^(1/2) -> 7.745966692 | K10: =H10^(0.25)*4.5 -> 12.52420958 | L10: =IF(L33>990,"full",L33) -> 940.6076893 | M10: =IF(L10="full",100,L10/J10*100) -> 12143.19305 | N10: =IF($C$4<0.8*I10,"too light",IF(M10>=100,MIN(E30,E40),IF(M10>=80,ROUND(MIN(E30,E40),0) & " - marginal","not recommended"))) -> 17.88364055
F11: 0 | G11: #2 | H11: 200 | I11: 400 | J11: =H11^(1/2) -> 14.14213562 | K11: =H11^(0.25)*4.5 -> 16.92271392 | L11: =IF(L34>990,"full",L34) -> 940.6076893 | M11: =IF(L11="full",100,L11/J11*100) -> 6651.100755 | N11: =IF($C$4<0.8*I11,"too light",IF(M11>=100,MIN(E31,E41),IF(M11>=80,ROUND(MIN(E31,E41),0) & " - marginal","not recommended"))) -> 22.35455069
E12: =IF(D12*C12>0,C12^2/D12,"") ->  | F12: 0 | G12: #3 | H12: 800 | I12: 500 | J12: 28.28427125 | K12: 23.93233154 | L12: 26.65251585 | M12: 94.23087346 | N12: =IF($C$4<0.8*I12,"too light",IF(M12>=100,MIN(E32,E42),IF(M12>=80,ROUND(MIN(E32,E42),0) & " - marginal","not recommended"))) -> 27 - marginal
F13: 0 | G13: #4 | H13: 1000 | I13: 800 | J13: 31.6227766 | K13: 25.30535963 | L13: 940.6076893 | M13: 2974.462683 | N13: =IF($C$4<0.8*I13,"too light",IF(M13>=100,MIN(E33,E43),IF(M13>=80,ROUND(MIN(E33,E43),0) & " - marginal","not recommended"))) -> 30
D14: HH/(L+x)= | E14: =SUM(E8:E13) -> 0.08081641155 | F14: =SUM(F8:F13) -> 1.6 | G14: #5 | H14: 1500 | I14: 900 | J14: 38.72983346 | K14: 28.00498398 | L14: 940.6076893 | M14: 2428.638611 | N14: =IF($C$4<0.8*I14,"too light",IF(M14>=100,MIN(E34,E43),IF(M14>=80,ROUND(MIN(E34,E43),0) & " - marginal","not recommended"))) -> 35
B15: Shaft Diameter | D15: 0.3 | E15: inches | G15: #6 | H15: 3500 | I15: 1000 | J15: 59.16079783 | K15: 34.61222553 | L15: 45.14988081 | M15: 76.31722773 | N15: =IF($C$4<0.8*I15,"too light",IF(M15>=100,MIN(E35,E43),IF(M15>=80,ROUND(MIN(E35,E43),0) & " - marginal","not recommended"))) -> not recommended
B16: Tip Angle | D16: 60 | E16: degrees | G16: RDP: recommended penetration depth, RBL: rib breakage loss, Dp: predicted penetrations depth
B17: Cutting Edge Angle | D17: 30 | E17: degrees
B18: Type of Tip | D18: Cut On Contact | L18: same size | M18: 0.9
B19: Saft Factor | D19: same size | I19: =VLOOKUP(D19,L18:M20,2) -> 0.9 | L19: thicker | M19: 0.6
B20: FOC | D20: 15 | E20: % | I20: =D20^9/((36-D20)^9+D20^9)+1 -> 1.046165821 | L20: thinner | M20: 1
B21: Penetration Resistence(Ro) | D21: =((VLOOKUP(D18,L28:M29,2)*VLOOKUP(D18,L28:N29,3)*PI()*(D15/2)^2)^0.5+E14*M29)*44 -> 4.087328472 | E21: lbs
B22: Measured Ro | E22: lbs | I22: =IF(D22>0,D22,D21) -> 4.087328472
M23: 1.43
B24: Max distance in relation to Grouping size | M24: 1.32
B25: At distance | C25: 20 | D25: yards | I25: =(D8^2-C8^2)^0.5 -> 1.959591794 | M25: 1
B26: Circumference | C26: 6 | D26: inches | I26: =(D9^2-C9^2)^0.5 -> 1.959591794
B27: Diameter | C27: =C26/3 -> 2 | D27: inches | E27: Accuracy | F27: =C27/C25 -> 0.1 | G27: "/Y | I27: 0
B28: Safety Factor (1 to 2) | D28: 2 | E28: x | I28: 0 | L28: Chisel Tip | M28: =TAN(D16/180*PI()/2) -> 0.5773502692 | N28: 1
C29: Category | D29: VD | E29: (yards) | F29: 1Y err | I29: 0 | L29: Cut On Contact | M29: =TAN(D17/180*PI()/2) -> 0.2679491924 | N29: =M29 -> 0.2679491924
C30: #1 | D30: 4 | E30: =D30/$F$27/$D$28 -> 20 | F30: =Arrow_RangeError(E30,$C$5,0,-1) -> 0.7120113882 | I30: 0
C31: #2 | D31: 5 | E31: 25 | F31: =Arrow_RangeError(E31,$C$5,0,-1) -> 0.8983283
C32: #3 | D32: 6 | E32: 30 | F32: 1.08963709
C33: #4 | D33: 6 | E33: 30 | F33: 1.08963709 | L33: =Arrow_PenetrationDepth3($I$22,$C$4,$C$5,$D$15,$F$14,0.001,K10,J10,K10)*$I$19*$I$20 -> 940.6076893
C34: #5 | D34: 7 | E34: 35 | F34: 1.27947923 | L34: =Arrow_PenetrationDepth3($I$22,$C$4,$C$5,$D$15,$F$14,0.001,K11,J11,K11)*$I$19*$I$20 -> 940.6076893
C35: #6 | D35: 8 | E35: 40 | F35: 1.464364467 | L35: 26.65251585
L36: 940.6076893
B37: Max distance in Relation to Reaction time | L37: 940.6076893
C38: Category | D38: Reaction T | E38: (Y) | F38: 1Y err | L38: 45.14988081
D39: 0.15 | E39: =D39*1083*$C$5/(1083-$C$5)/3 -> 13.41273041 | F39: 0.4681689745
C40: #1 | D40: 0.2 | E40: =D40*1083*$C$5/(1083-$C$5)/3 -> 17.88364055 | F40: 0.6325307239
C41: #2 | D41: 0.25 | E41: =D41*1083*$C$5/(1083-$C$5)/3 -> 22.35455069 | F41: 0.8011029418
C42: #3 | D42: 0.3 | E42: =D42*1083*$C$5/(1083-$C$5)/3 -> 26.82546083 | F42: 0.9682745332
C43: #4+ | D43: 0.4 | E43: =D43*1083*$C$5/(1083-$C$5)/3 -> 35.76728111 | F43: 1.305024212

Sheet Penetration workbench
B1: Ro | C1: 5 | D1: lbs
B2: cutting dia | C2: 1.25 | D2: "
B3: blade len | C3: 2 | D3: " | E3: Blade area = (CD-0.3)/2*BladeLength*BladeCount | T3: 50 | U3: =T3^0.25*4.5 -> 11.96616577
B4: blade count | C4: 2 | D4: x | E4: =(C2-0.3)/2*C3*C4 -> 1.9 | F4: inch^2 | T4: 100 | U4: =T4^0.25*4.5 -> 14.23024947 | AC4: KE | AE4: 76
B5: diameter | C5: 0.3 | D5: " | E5: =PI()*C5*30 -> 28.27433388 | F5: inch^2 | H5: Animal weight | I5: 1200 | T5: 200 | U5: 16.92271392 | AC5: Vm | AE5: 80
H6: BodyWidth | I6: =I5^0.5 -> 34.64101615 | J6: inches | K6: Req depth | L6: =I6+30 -> 64.64101615 | M6: inch | T6: 350 | U6: 19.46388477
H7: KE-loss | I7: =I5^0.25*4.5 -> 26.48547861 | J7: =I7 -> 26.48547861 | K7: footpounds | T7: 500 | U7: 21.2791862 | AC7: M | AE7: 500 | AF7: 500 | AG7: 500 | AI7: 0.63
H8: min KE | I8: 80 | J8: fp | T8: 750 | U8: 23.54929064 | AC8: V | AE8: =(AE4*450240/(AE7+AE5))^0.5 -> 242.8929096 | AF8: =(AE4*450240/(AF7+AE5))^0.5 -> 242.8929096 | AG8: =(AE4*450240/(AG7+AE5))^0.5 -> 242.8929096 | AI8: 0.84
T9: 1000 | U9: 25.30535963 | AC9: BladeCount | AE9: 3 | AF9: 3 | AG9: 3 | AI9: 0.9
E10: 150 | F10: =E10+25 -> 175 | G10: =F10+25 -> 200 | H10: 225 | I10: 250 | J10: 275 | K10: 300 | L10: 325 | M10: 350 | Q10: arrow | R10: animal | T10: 2000 | U10: 30.09331372 | AC10: Cuttng Dia | AE10: 1.2 | AF10: 1.2 | AG10: 1.2
C11: Arrow weight (grains) | D11: 300 | E11: =Arrow_PenetrationDepth3($C$1,$D11,E$10,$C$5,$E$4,$C$7,$I$7,$I$6,$J$7) -> err | F11: =Arrow_PenetrationDepth3($C$1,$D11,F$10,$C$5,$E$4,$C$7,$I$7,$I$6,$J$7) -> err | G11: err | H11: 6.377952756 | I11: 15.62992126 | J11: 20.51181102 | K11: 23.8976378 | L11: 26.49606299 | M11: 28.58267717 | P11: Ro | Q11: weight | R11: weight | AC11: Blade Edge Length | AE11: 1.5 | AF11: 1.5 | AG11: 1.5
D12: =D11+50 -> 350 | E12: =Arrow_PenetrationDepth3($C$1,$D12,E$10,$C$5,$E$4,$C$7,$I$7,$I$6,$J$7) -> err | F12: err | G12: err | H12: 12.75590551 | I12: 20.59055118 | J12: 25.23622047 | K12: 28.58267717 | L12: 31.22047244 | M12: 33.42519685 | P12: (lbs) | Q12: (grain) | R12: (kg) | T12: speed | AC12: Cutting edge angle | AE12: 30 | AF12: 30 | AG12: 30
D13: 400 | E13: err | F13: err | G13: err | H13: 17.75590551 | I13: 25.07874016 | J13: 29.64566929 | K13: 33.03149606 | L13: 999 | M13: 999 | P13: 4 | Q13: 350 | R13: 60 | T13: =R13^0.5*700*P13^0.828/Q13 -> 48.82151968 | U13: =R13^0.5*700*P13^0.828/Q13+(R13^(0.25)*4.5*450240/Q13)^0.5 -> 175.7511978 | AC13: Tip Angle | AE13: 75 | AF13: 75 | AG13: 75
D14: 450 | E14: err | F14: err | G14: 6.456692913 | H14: 22.20472441 | I14: 29.2519685 | J14: 33.85826772 | K14: 999 | L14: 999 | M14: 999 | P14: 6 | Q14: 350 | R14: 60 | T14: 68.29908039 | U14: 195.2287586 | AC14: Shaft dia | AE14: 0.3 | AF14: 0.26 | AG14: 0.22
D15: 500 | E15: err | F15: err | G15: 11.69291339 | H15: 26.25984252 | I15: 33.22834646 | J15: 999 | K15: 999 | L15: 999 | M15: 999 | P15: 8 | Q15: 350 | R15: 60 | T15: 86.66906874 | U15: 213.5987469 | AC15: Cut on contact | AE15: 1 | AF15: 1 | AG15: 1
D16: 550 | E16: err | F16: err | G16: 16.14173228 | H16: 30.03937008 | I16: 999 | J16: 999 | K16: 999 | L16: 999 | M16: 999 | P16: 10 | Q16: 350 | R16: 60 | T16: 104.2570953 | U16: 231.1867735
D17: 600 | E17: err | F17: err | G17: 20.11811024 | H17: 33.7007874 | I17: 999 | J17: 999 | K17: 999 | L17: 999 | M17: 999 | P17: 12 | Q17: 350 | R17: 60 | T17: 121.2460762 | U17: 248.1757543 | AC17: H | AE17: =(AE10-0.3)/2 -> 0.45 | AF17: =(AF10-0.3)/2 -> 0.45 | AG17: 0.45
D18: =D17+100 -> 700 | E18: err | F18: err | G18: 27.24409449 | H18: 999 | I18: 999 | J18: 999 | K18: 999 | L18: 999 | M18: 999 | P18: 15 | Q18: 350 | R18: 60 | T18: 145.8509235 | U18: 272.7806017 | AC18: x | AE18: =(AE11^2-AE17^2)^0.5 -> 1.430908802 | AF18: =(AF11^2-AF17^2)^0.5 -> 1.430908802 | AG18: 1.430908802
D19: =D18+100 -> 800 | E19: err | F19: err | G19: 33.66141732 | H19: 999 | I19: 999 | J19: 999 | K19: 999 | L19: 999 | M19: 999
D20: =D19+100 -> 900 | E20: err | F20: err | G20: 999 | H20: 999 | I20: 999 | J20: 999 | K20: 999 | L20: 999 | M20: 999
D21: =D20+150 -> 1050 | E21: err | F21: 6.181102362 | G21: 999 | H21: 999 | I21: 999 | J21: 999 | K21: 999 | L21: 999 | M21: 999
D22: =D21+150 -> 1200 | E22: err | F22: 14.37007874 | G22: 999 | H22: 999 | I22: 999 | J22: 999 | K22: 999 | L22: 999 | M22: 999 | P22: D = mv/700R^0.828 | AC22: B-area | AE22: =AE17*AE18*AE9 -> 1.931726883 | AF22: =AF17*AF18*AF9 -> 1.931726883 | AG22: =AG17*AG18*AG9 -> 1.931726883
D23: =D22+150 -> 1350 | E23: err | F23: 21.65354331 | G23: 999 | H23: 999 | I23: 999 | J23: 999 | K23: 999 | L23: 999 | M23: 999 | R23: 4 | S23: 6 | T23: 8 | U23: 12 | V23: 15 | AC23: Ro | AE23: =Arrow_Ro(AE9,AE10,AE11,AE12,AE13,AE14,AE15) -> 7.74222468 | AF23: =Arrow_Ro(AF9,AF10,AF11,AF12,AF13,AF14,AF15) -> 7.263381056 | AG23: =Arrow_Ro(AG9,AG10,AG11,AG12,AG13,AG14,AG15) -> 6.795545628
P24: P | Q24: mv | R24: Kg = D^2 | AC24: D | AE24: =Arrow_PenetrationDepth3(AE23,AE7,AE8,AE14,AE22,0.001,0,100,0) -> 27.44094488 | AF24: =Arrow_PenetrationDepth3(AF23,AF7,AF8,AF14,AF22,0.001,0,100,0) -> 29.29133858 | AG24: =Arrow_PenetrationDepth3(AG23,AG7,AG8,AG14,AG22,0.001,0,100,0) -> 31.37795276
P25: 0.1 | Q25: =P25/2*450240 -> 22512 | R25: =($Q25/700/R$23^0.828)^2 -> 104.140758 | S25: 53.21249342 | T25: 33.04570805 | U25: 16.88526717 | V25: 11.66876665 | AC25: W-area | AE25: =AE24*AE17*AE9 -> 37.04527559 | AF25: =AF24*AF17*AF9 -> 39.54330709 | AG25: =AG24*AG17*AG9 -> 42.36023622
E26: =$D11*E$10^2/450240 -> 14.99200426 | F26: =$D11*F$10^2/450240 -> 20.40578358 | G26: 26.65245203 | H26: 33.73200959 | I26: 41.64445629 | J26: 50.38979211 | K26: 59.96801706 | L26: 70.37913113 | M26: 81.62313433 | P26: 0.2 | Q26: =P26/2*450240 -> 45024 | R26: 416.5630321 | S26: 212.8499737 | T26: 132.1828322 | U26: 67.54106868 | V26: 46.67506662 | AE26: 1 | AF26: =AF25/AE25 -> 1.067431851 | AG26: =AG25/AE25 -> 1.143472023
E27: =$D12*E$10^2/450240 -> 17.49067164 | F27: 23.80674751 | G27: 31.09452736 | H27: 39.35401119 | I27: 48.585199 | J27: 58.7880908 | K27: 69.96268657 | L27: 82.10898632 | M27: 95.22699005 | P27: 0.3 | Q27: 67536 | R27: 937.2668222 | S27: 478.9124408 | T27: 297.4113725 | U27: 151.9674045 | V27: 105.0188999 | AC27: P | AE27: =IF(AE9=2,0.63,IF(AE9=3,0.84,0.9)) -> 0.84 | AF27: =IF(AF9=2,0.63,IF(AF9=3,0.84,0.9)) -> 0.84 | AG27: =IF(AG9=2,0.63,IF(AG9=3,0.84,0.9)) -> 0.84
E28: 19.98933902 | F28: 27.20771144 | G28: 35.5366027 | H28: 44.97601279 | I28: 55.52594172 | J28: 67.18638948 | K28: 79.95735608 | L28: 93.83884151 | M28: 108.8308458 | P28: 0.4 | Q28: 90048 | R28: 1666.252128 | S28: 851.3998948 | T28: 528.7313288 | U28: 270.1642747 | V28: 186.7002665
E29: 22.4880064 | F29: 30.60867537 | G29: 39.97867804 | H29: 50.59801439 | I29: 62.46668443 | J29: 75.58468817 | K29: 89.95202559 | L29: 105.5686967 | M29: 122.4347015 | P29: 0.5 | Q29: 112560 | R29: 2603.518951 | S29: 1330.312336 | T29: 826.1427013 | U29: 422.1316792 | V29: 291.7191664
E30: 24.98667377 | F30: 34.0096393 | G30: 44.42075338 | H30: 56.22001599 | I30: 69.40742715 | J30: 83.98298685 | K30: 99.9466951 | L30: 117.2985519 | M30: 136.0385572 | P30: 0.6 | Q30: 135072 | R30: 3749.067289 | S30: 1915.649763 | T30: 1189.64549 | U30: 607.8696181 | V30: 420.0755996
E31: 27.48534115 | F31: 37.41060323 | G31: 48.86282871 | H31: 61.84201759 | I31: 76.34816986 | J31: 92.38128554 | K31: 109.9413646 | L31: 129.0284071 | M31: 149.6424129 | P31: 0.7 | Q31: 157584 | R31: 5102.897143 | S31: 2607.412178 | T31: 1619.239695 | U31: 827.3780913 | V31: 571.7695661
E32: 29.98400853 | F32: 40.81156716 | G32: 53.30490405 | H32: 67.46401919 | I32: 83.28891258 | J32: 100.7795842 | K32: 119.9360341 | L32: 140.7582623 | M32: 163.2462687 | P32: 0.8 | Q32: 180096 | R32: 6665.008514 | S32: 3405.599579 | T32: 2114.925315 | U32: 1080.657099 | V32: 746.8010659
E33: 34.98134328 | F33: 47.61349502 | G33: 62.18905473 | H33: 78.70802239 | I33: 97.17039801 | J33: 117.5761816 | K33: 139.9253731 | L33: 164.2179726 | M33: 190.4539801 | P33: 0.9 | Q33: 202608 | R33: 8435.4014 | S33: 4310.211967 | T33: 2676.702352 | U33: 1367.706641 | V33: 945.170099
E34: 39.97867804 | F34: 54.41542289 | G34: 71.0732054 | H34: 89.95202559 | I34: 111.0518834 | J34: 134.372779 | K34: 159.9147122 | L34: 187.677683 | M34: 217.6616915 | P34: 1 | Q34: 225120 | R34: 10414.0758 | S34: 5321.249342 | T34: 3304.570805 | U34: 1688.526717 | V34: 1166.876665
E35: 44.97601279 | F35: 61.21735075 | G35: 79.95735608 | H35: 101.1960288 | I35: 124.9333689 | J35: 151.1693763 | K35: 179.9040512 | L35: 211.1373934 | M35: 244.869403 | P35: 1.1 | Q35: 247632 | R35: 12601.03172 | S35: 6438.711704 | T35: 3998.530674 | U35: 2043.117327 | V35: 1411.920765
E36: 52.47201493 | F36: 71.42024254 | G36: 93.28358209 | H36: 118.0620336 | I36: 145.755597 | J36: 176.3642724 | K36: 209.8880597 | L36: 246.326959 | M36: 285.6809701 | P36: 1.2 | Q36: 270144 | R36: 14996.26916 | S36: 7662.599053 | T36: 4758.58196 | U36: 2431.478472 | V36: 1680.302398
E37: 59.96801706 | F37: 81.62313433 | G37: 106.6098081 | H37: 134.9280384 | I37: 166.5778252 | J37: 201.5591684 | K37: 239.8720682 | L37: 281.5165245 | M37: 326.4925373 | P37: 1.3 | Q37: 292656 | R37: 17599.78811 | S37: 8992.911389 | T37: 5584.724661 | U37: 2853.610152 | V37: 1972.021565
E38: 67.46401919 | F38: 91.82602612 | G38: 119.9360341 | H38: 151.7940432 | I38: 187.4000533 | J38: 226.7540645 | K38: 269.8560768 | L38: 316.7060901 | M38: 367.3041045 | P38: 1.4 | Q38: 315168 | R38: 20411.58857 | S38: 10429.64871 | T38: 6476.958778 | U38: 3309.512365 | V38: 2287.078264
P39: 0.2 | Q39: 45024 | R39: 416.5630321 | S39: 212.8499737 | T39: 132.1828322 | U39: 67.54106868 | V39: 46.67506662 | AC39: prop | AE39: =IF(AE9=2,0.63,IF(AE9=3,0.84,0.9)) -> 0.84 | AF39: =IF(AF9=2,0.63,IF(AF9=3,0.84,0.9)) -> 0.84 | AG39: =IF(AG9=2,0.63,IF(AG9=3,0.84,0.9)) -> 0.84
P40: 0.3 | Q40: 67536 | R40: 937.2668222 | S40: 478.9124408 | T40: 297.4113725 | U40: 151.9674045 | V40: 105.0188999 | AC40: Damage | AE40: =AE39*AE25 -> 31.1180315 | AF40: =AF39*AF25 -> 33.21637795 | AG40: 35.58259843
E41: (sq.inch) | F41: (lbs) | G41: Arrow Weight | P41: 0.4 | Q41: 90048 | R41: 1666.252128 | S41: 851.3998948 | T41: 528.7313288 | U41: 270.1642747 | V41: 186.7002665 | AE41: 1 | AF41: =AF40/AE40 -> 1.067431851 | AG41: =AG40/AE40 -> 1.143472023
E42: A | F42: Ro | G42: 800 | H42: =G42 -> 800 | I42: =H42 -> 800 | J42: =H42 -> 800 | P42: 0.5 | Q42: 112560 | R42: 2603.518951 | S42: 1330.312336 | T42: 826.1427013 | U42: 422.1316792 | V42: 291.7191664 | AM42: M | AN42: 250 | AO42: kg
D43: Broadhead cutting resistance Ro | E43: 1 | F43: 3 | G43: =arrow_ReqFPS($F43,G$42,$L$6,$C$5,$E43,$C$7,0,$I$6,0,$L$6) -> 167 | H43: =arrow_ReqFPS($F43,H$42,$L$6,$C$5,$E43,$C$7,$I$7,$I$6,0,$L$6) -> 188 | I43: =arrow_ReqFPS($F43,I$42,$L$6,$C$5,$E43,$C$7,0,$I$6,$J$7,$L$6) -> 167 | J43: =arrow_ReqFPS($F43,J$42,$L$6,$C$5,$E43,$C$7,$I$7,$I$6,$J$7,$L$6) -> 188 | P43: 0.6 | Q43: 135072 | R43: 3749.067289 | S43: 1915.649763 | T43: 1189.64549 | U43: 607.8696181 | V43: 420.0755996 | AN43: m(grain)
E44: =E43+(E$51-E$43)/8 -> 1.0625 | F44: =F43+(F$51-F$43)/8 -> 4.5 | G44: 173 | H44: 194 | I44: 173 | J44: 194 | K44: sleek 2 bladers | P44: 0.7 | Q44: 157584 | R44: 5102.897143 | S44: 2607.412178 | T44: 1619.239695 | U44: 827.3780913 | V44: 571.7695661 | AM44: Ro(lbs) | AN44: 350 | AO44: =AN44+50 -> 400 | AP44: =AO44+50 -> 450 | AQ44: =AP44+50 -> 500 | AR44: =AQ44+50 -> 550
E45: =E44+(E$51-E$43)/8 -> 1.125 | F45: =F44+(F$51-F$43)/8 -> 6 | G45: 180 | H45: 202 | I45: 180 | J45: 202 | K45: medium 2 bladers | P45: 0.8 | Q45: 180096 | R45: 6665.008514 | S45: 3405.599579 | T45: 2114.925315 | U45: 1080.657099 | V45: 746.8010659 | AC45: M | AE45: =AE7*AE8/450240*2 -> 0.5394743016 | AF45: =AF7*AF8/450240*2 -> 0.5394743016 | AG45: =AG7*AG8/450240*2 -> 0.5394743016 | AM45: 4 | AN45: =700*($AN$42*$AM45^1.656/AN$44^2+4.13*$AN$42^0.25/AN$44)^0.5 -> 181.4461262 | AO45: 166.4965782 | AP45: 154.5639032 | AQ45: 144.7766884 | AR45: 136.5746213
E46: =E45+(E$51-E$43)/8 -> 1.1875 | F46: 8 | G46: 193 | H46: 217 | I46: 193 | J46: 217 | K46: large 2 bladers | P46: 1 | Q46: 225120 | R46: 10414.0758 | S46: 5321.249342 | T46: 3304.570805 | U46: 1688.526717 | V46: 1166.876665 | AC46: KE | AE46: =AE8^2*AE7/450240 -> 65.51724138 | AF46: =AF8^2*AF7/450240 -> 65.51724138 | AG46: =AG8^2*AG7/450240 -> 65.51724138 | AM46: 6 | AN46: 205.9800841 | AO46: 187.0787307 | AP46: 172.1627077 | AQ46: 160.0555769 | AR46: 150.0059973
E47: =E46+(E$51-E$43)/8 -> 1.25 | F47: =F46+(F$51-F$43)/8 -> 9.5 | G47: 208 | H47: 233 | I47: 208 | J47: 233 | K47: small 3 bladers | P47: 1.1 | Q47: 247632 | R47: 12601.03172 | S47: 6438.711704 | T47: 3998.530674 | U47: 2043.117327 | V47: 1411.920765 | AM47: 8 | AN47: 233.0006608 | AO47: 209.9521904 | AP47: 191.8736069 | AQ47: 177.2848809 | AR47: 165.2429175
E48: =E47+(E$51-E$43)/8 -> 1.3125 | F48: =F47+(F$51-F$43)/8 -> 11 | G48: 228 | H48: 254 | I48: 228 | J48: 254 | AM48: 10 | AN48: 261.3064001 | AO48: 234.0776327 | AP48: 212.7900657 | AQ48: 195.6677673 | AR48: 181.5799906
E49: =E48+(E$51-E$43)/8 -> 1.375 | F49: =F48+(F$51-F$43)/8 -> 12.5 | G49: 256 | H49: 282 | I49: 256 | J49: 282 | K49: medium 3 bladers | P49: D = mv/700R^0.828 | AM49: 12 | AN49: 290.247864 | AO49: 258.8703296 | AP49: 234.3845416 | AQ49: 214.726899 | AR49: 198.5838927
E50: =E49+(E$51-E$43)/8 -> 1.4375 | F50: =F49+(F$51-F$43)/8 -> 14 | G50: 294 | H50: 318 | I50: 294 | J50: 318 | K50: small 4 bladers | Q50: 50 | R50: 100 | S50: =R50*2 -> 200 | T50: =S50*2 -> 400 | U50: 800 | V50: 1600 | W50: 3200 | X50: 6400 | Y50: 12800 | AM50: 15 | AN50: 334.1057612 | AO50: 296.612259 | AP50: 267.3967828 | AQ50: 243.9779321 | AR50: 224.7765111
E51: 1.5 | F51: 15 | G51: 328 | H51: n.a. | I51: 328 | J51: n.a. | K51: 3 blade mechanicals/large 4 bladers | P51: 300 | R51: =R50^0.5 -> 10 | S51: 14.14213562 | T51: 20 | U51: 28.28427125 | V51: 40 | W51: 56.56854249 | X51: 80 | Y51: 113.137085
G52: Arrow Weight | H52: + | I52: 200 | P52: 400 | R52: =(R$59*450240/$P52)^0.5 -> 126.5605341 | S52: 138.0152411 | T52: 150.5066877
G53: =G42+$I$52 -> 1000 | H53: =H42+$I$52 -> 1000 | I53: =I42+$I$52 -> 1000 | J53: =J42+$I$52 -> 1000 | P53: 500 | R53: 113.1991831 | S53: 123.4445844 | T53: 134.6172739 | U53: 146.8011781
E54: =E43 -> 1 | F54: 3 | G54: =arrow_ReqFPS($F54,G$53,$L$6,$C$5,$E54,$C$7,0,$I$6,0,$L$6) -> 164 | H54: =arrow_ReqFPS($F54,H$53,$L$6,$C$5,$E54,$C$7,$I$7,$I$6,0,$L$6) -> 181 | I54: =arrow_ReqFPS($F54,I$53,$L$6,$C$5,$E54,$C$7,0,$I$6,$J$7,$L$6) -> 164 | J54: =arrow_ReqFPS($F54,J$53,$L$6,$C$5,$E54,$C$7,$I$7,$I$6,$J$7,$L$6) -> 181 | P54: 600 | R54: 103.3362434 | S54: 112.6889725 | T54: 122.8881959 | U54: 134.0105279 | V54: 146.1395169
E55: 1.0625 | F55: 4.5 | G55: 169 | H55: 186 | I55: 169 | J55: 186 | K55: sleek 2 bladers | P55: 700 | R55: 95.67077119 | S55: 104.3297158 | T55: 113.7723618 | U55: 124.0696403 | V55: 135.2989021
E56: 1.125 | F56: 6 | G56: 174 | H56: 191 | I56: 174 | J56: 191 | K56: medium 2 bladers | P56: 800 | R56: 89.49181193 | S56: 97.59151292 | T56: 106.4242995 | U56: 116.0565215 | V56: 126.5605341 | W56: 138.0152411
E57: 1.1875 | F57: 8 | G57: 182 | H57: 200 | I57: 182 | J57: 200 | K57: large 2 bladers | P57: 1000 | R57: 80.04390996 | S57: 87.28850276 | T57: 95.18878724 | U57: 103.8041085 | V57: 113.1991831 | W57: 123.4445844 | X57: 134.6172739 | Y57: 146.8011781
E58: 1.25 | F58: 9.5 | G58: 190 | H58: 209 | I58: 190 | J58: 209 | K58: small 3 bladers | P58: 1200 | Q58: =(Q$59*450240/$P58)^0.5 -> 67.00526394 | R58: 73.06975846 | S58: 79.68313662 | T58: 86.89507665 | U58: 94.75975302 | V58: 103.3362434 | W58: 112.6889725 | X58: 122.8881959 | Y58: 134.0105279
E59: 1.3125 | F59: 11 | G59: 201 | H59: 220 | I59: 201 | J59: 220 | Q59: =Q50^($Q$60)*$Q$61 -> 11.96616577 | R59: =R50^($Q$60)*$Q$61 -> 14.23024947 | S59: 16.92271392 | T59: 20.1246118 | U59: 23.93233154 | V59: 28.46049894 | W59: 33.84542784 | X59: 40.24922359 | Y59: 47.86466307
E60: 1.375 | F60: 12.5 | G60: 216 | H60: 236 | I60: 216 | J60: 236 | K60: medium 3 bladers | Q60: 0.25
E61: 1.4375 | F61: 14 | G61: 235 | H61: 256 | I61: 235 | J61: 256 | K61: small 4 bladers | Q61: 4.5
E62: 1.5 | F62: 15 | G62: 254 | H62: 274 | I62: 254 | J62: 274 | K62: 3 blade mechanicals/large 4 bladers
Q64: 350 | R64: 400 | S64: 500 | T64: 600 | U64: 800 | V64: 1000
P65: 0.1 | Q65: =$P65/2*450240/Q$64 -> 64.32 | R65: 56.28 | S65: 45.024 | T65: 37.52 | U65: 28.14 | V65: 22.512
P66: 0.2 | Q66: 128.64 | R66: 112.56 | S66: 90.048 | T66: 75.04 | U66: 56.28 | V66: 45.024
D67: =F43 -> 3 | E67: =G$42*G43^2/450240 -> 49.55401564 | F67: =H$42*H43^2/450240 -> 62.80028429 | G67: =I$42*I43^2/450240 -> 49.55401564 | H67: =J$42*J43^2/450240 -> 62.80028429 | I67: =G$53*G54^2/450240 -> 59.73702914 | J67: =H$53*H54^2/450240 -> 72.76341507 | K67: =I$53*I54^2/450240 -> 59.73702914 | L67: =J$53*J54^2/450240 -> 72.76341507 | P67: 0.3 | Q67: 192.96 | R67: 168.84 | S67: 135.072 | T67: 112.56 | U67: 84.42 | V67: 67.536
D68: 4.5 | E68: 53.17874911 | F68: 66.87277896 | G68: 53.17874911 | H68: 66.87277896 | I68: 63.43505686 | J68: 76.83901919 | K68: 63.43505686 | L68: 76.83901919 | P68: 0.4 | Q68: 257.28 | R68: 225.12 | S68: 180.096 | T68: 150.08 | U68: 112.56 | V68: 90.048
D69: 6 | E69: 57.56929638 | F69: 72.50177683 | G69: 57.56929638 | H69: 72.50177683 | I69: 67.24413646 | J69: 81.0256752 | K69: 67.24413646 | L69: 81.0256752 | P69: 0.5 | Q69: =$P69/2*450240/Q$64 -> 321.6 | R69: =$P69/2*450240/R$64 -> 281.4 | S69: =$P69/2*450240/S$64 -> 225.12 | T69: 187.6 | U69: 140.7 | V69: 112.56
D70: 8 | E70: 66.1851457 | F70: 83.66915423 | G70: 66.1851457 | H70: 83.66915423 | I70: 73.56965174 | J70: 88.84150675 | K70: 73.56965174 | L70: 88.84150675 | P70: 0.6 | R70: =$P70/2*450240/R$64 -> 337.68 | S70: =$P70/2*450240/S$64 -> 270.144 | T70: 225.12 | U70: 168.84 | V70: 135.072
D71: 9.5 | E71: 76.87277896 | F71: 96.4623312 | G71: 76.87277896 | H71: 96.4623312 | I71: 80.17945984 | J71: 97.01714641 | K71: 80.17945984 | L71: 97.01714641 | P71: 0.7 | S71: =$P71/2*450240/S$64 -> 315.168 | T71: =$P71/2*450240/T$64 -> 262.64 | U71: =$P71/2*450240/U$64 -> 196.98 | V71: =$P71/2*450240/V$64 -> 157.584
D72: 11 | E72: 92.36673774 | F72: 114.633973 | G72: 92.36673774 | H72: 114.633973 | I72: 89.73214286 | J72: 107.4982232 | K72: 89.73214286 | L72: 107.4982232 | P72: 0.8 | T72: =$P72/2*450240/T$64 -> 300.16 | U72: 225.12 | V72: 180.096
D73: 12.5 | E73: 116.4463397 | F73: 141.3006397 | G73: 116.4463397 | H73: 141.3006397 | I73: 103.6247335 | J73: 123.702914 | K73: 103.6247335 | L73: 123.702914 | P73: 0.9 | T73: 337.68 | U73: 253.26 | V73: 202.608
D74: 14 | E74: 153.5820896 | F74: 179.6801706 | G74: 153.5820896 | H74: 179.6801706 | I74: 122.6568053 | J74: 145.5579247 | K74: 122.6568053 | L74: 145.5579247 | P74: 1 | U74: =$P74/2*450240/U$64 -> 281.4 | V74: =$P74/2*450240/V$64 -> 225.12
D75: 15 | E75: 191.1584932 | G75: 191.1584932 | I75: 143.2924662 | J75: 166.746624 | K75: 143.2924662 | L75: 166.746624 | P75: 1.2 | U75: =$P75/2*450240/U$64 -> 337.68 | V75: =$P75/2*450240/V$64 -> 270.144
D77: =D67 -> 3 | E77: =G$42*G43/450240*2 -> 0.5934612651 | F77: =H$42*H43/450240*2 -> 0.6680881308 | G77: =I$42*I43/450240*2 -> 0.5934612651 | H77: =J$42*J43/450240*2 -> 0.6680881308 | I77: =G$53*G54/450240*2 -> 0.7285003554 | J77: =H$53*H54/450240*2 -> 0.8040156361 | K77: =I$53*I54/450240*2 -> 0.7285003554 | L77: =J$53*J54/450240*2 -> 0.8040156361
D78: =D68 -> 4.5 | E78: 0.6147832267 | F78: 0.6894100924 | G78: 0.6147832267 | H78: 0.6894100924 | I78: 0.7507107321 | J78: 0.8262260128 | K78: 0.7507107321 | L78: 0.8262260128
D79: 6 | E79: 0.6396588486 | F79: 0.7178393746 | G79: 0.6396588486 | H79: 0.7178393746 | I79: 0.7729211087 | J79: 0.8484363895 | K79: 0.7729211087 | L79: 0.8484363895
D80: 8 | E80: 0.6858564321 | F80: 0.7711442786 | G80: 0.6858564321 | H80: 0.7711442786 | I80: 0.8084577114 | J80: 0.8884150675 | K80: 0.8084577114 | L80: 0.8884150675
D81: 9.5 | E81: 0.7391613362 | F81: 0.8280028429 | G81: 0.7391613362 | H81: 0.8280028429 | I81: 0.8439943141 | J81: 0.9283937456 | K81: 0.8439943141 | L81: 0.9283937456
D82: 11 | E82: 0.8102345416 | F82: 0.9026297086 | G82: 0.8102345416 | H82: 0.9026297086 | I82: 0.8928571429 | J82: 0.9772565743 | K82: 0.8928571429 | L82: 0.9772565743
D83: 12.5 | E83: 0.9097370291 | F83: 1.002132196 | G83: 0.9097370291 | H83: 1.002132196 | I83: 0.9594882729 | J83: 1.04832978 | K83: 0.9594882729 | L83: 1.04832978 | AM83: 450
D84: 14 | E84: 1.044776119 | F84: 1.130063966 | G84: 1.044776119 | H84: 1.130063966 | I84: 1.043887704 | J84: 1.137171286 | K84: 1.043887704 | L84: 1.137171286 | AM84: 150 | AN84: =(AN85*450240/AM83)^0.5 -> 141.4590636 | AO84: =AM84+AN84 -> 291.4590636 | AP84: =(AP85*450240/AM83)^0.5 -> 206.1811501
D85: 15 | E85: 1.165600569 | G85: 1.165600569 | I85: 1.128287136 | J85: 1.217128643 | K85: 1.128287136 | L85: 1.217128643 | AM85: =AM83*AM84^2/450240 -> 22.4880064 | AN85: 20 | AO85: =AM83*AO84^2/450240 -> 84.90310408 | AP85: =AM85+AN85 -> 42.4880064
AM89: =AM84^2 -> 22500 | AN89: =AN84^2 -> 20010.66667 | AP89: =AP84^2 -> 42510.66667
AP90: =AN89+AM89 -> 42510.66667
Q91: 150 | R91: 175 | S91: 200 | T91: 225 | U91: 250 | V91: 275 | W91: 300 | X91: 325
P92: 350 | Q92: =$P92*Q$91^2/450240 -> 17.49067164 | R92: =$P92*R$91^2/450240 -> 23.80674751 | S92: 31.09452736 | T92: 39.35401119 | U92: 48.585199 | V92: 58.7880908 | W92: 69.96268657 | X92: 82.10898632
P93: 400 | Q93: =$P93*Q$91^2/450240 -> 19.98933902 | R93: 27.20771144 | S93: 35.5366027 | T93: 44.97601279 | U93: 55.52594172 | V93: 67.18638948 | W93: 79.95735608 | X93: 93.83884151
P94: 450 | Q94: 22.4880064 | R94: 30.60867537 | S94: 39.97867804 | T94: 50.59801439 | U94: 62.46668443 | V94: 75.58468817 | W94: 89.95202559 | X94: 105.5686967
P95: 500 | Q95: 24.98667377 | R95: 34.0096393 | S95: 44.42075338 | T95: 56.22001599 | U95: 69.40742715 | V95: 83.98298685 | W95: 99.9466951 | X95: 117.2985519
P96: 550 | Q96: 27.48534115 | R96: 37.41060323 | S96: 48.86282871 | T96: 61.84201759 | U96: 76.34816986 | V96: 92.38128554 | W96: 109.9413646
P97: 600 | Q97: 29.98400853 | R97: 40.81156716 | S97: 53.30490405 | T97: 67.46401919 | U97: 83.28891258 | V97: 100.7795842
P98: 650 | Q98: 32.48267591 | R98: 44.21253109 | S98: 57.74697939 | T98: 73.08602079 | U98: 90.22965529 | V98: 109.1778829
P99: 700 | Q99: 34.98134328 | R99: 47.61349502 | S99: 62.18905473 | T99: 78.70802239 | U99: 97.17039801 | V99: 117.5761816
P100: 750 | Q100: 37.48001066 | R100: 51.01445896 | S100: 66.63113006 | T100: 84.33002399 | U100: 104.1111407
P101: 800 | Q101: 39.97867804 | R101: 54.41542289 | S101: 71.0732054 | T101: 89.95202559 | U101: 111.0518834
P102: 850 | Q102: 42.47734542 | R102: 57.81638682 | S102: 75.51528074 | T102: 95.57402719 | U102: 117.9926262
P103: 900 | Q103: 44.97601279 | R103: 61.21735075 | S103: 79.95735608 | T103: 101.1960288
P104: 950 | Q104: 47.47468017 | R104: 64.61831468 | S104: 84.39943141 | T104: 106.8180304
P105: 1000 | Q105: 49.97334755 | R105: 68.01927861 | S105: 88.84150675 | T105: 112.440032
P106: 1050 | Q106: 52.47201493 | R106: 71.42024254 | S106: 93.28358209 | T106: 118.0620336
P107: 1100 | Q107: 54.9706823 | R107: 74.82120647 | S107: 97.72565743

Sheet Arrow Selector
B2: Arrow Deflection (mm)
C3: GPI | D3: 6.8 | E3: 7.5 | F3: 8.2 | G3: 8.9 | H3: 9.6 | I3: 10.3 | J3: 11 | K3: 10.8 | L3: 12.5
C4: SPINE | D4: 700 | E4: 600 | F4: 500 | G4: 450 | H4: 400 | I4: 350 | J4: 300 | K4: 280 | L4: 250 | N4: Draw Len | O4: 30 | P4: inch
B5: PointWeight | C5: 85 | D5: =Arrow_Deflection($C5,D$3,ShaftLen,D$4,BraceHeight,DrawLen,D21) -> 20.64662427 | E5: 17.58653042 | F5: 14.79712554 | G5: 13.19909832 | H5: 11.71830684 | I5: 10.29377504 | J5: 8.875144562 | K5: 8.343586757 | L5: 7.399521986 | N5: Brace H | O5: 7.25 | P5: inch
C6: 100 | D6: =Arrow_Deflection($C6,D$3,ShaftLen,D$4,BraceHeight,DrawLen,D22) -> 21.41202194 | E6: 18.15268552 | F6: 15.19363502 | G6: 13.50592452 | H6: 11.94698247 | I6: 10.44939527 | J6: 8.970622283 | K6: 8.415977647 | L6: 7.438962788
C7: 125 | D7: =Arrow_Deflection($C7,D$3,ShaftLen,D$4,BraceHeight,DrawLen,D23) -> 22.72367372 | E7: 19.11391021 | F7: 15.84562432 | G7: 14.00650508 | H7: 12.31629325 | I7: 10.70513586 | J7: 9.118393769 | K7: 8.525417959 | L7: 7.495564745 | N7: Shaft Len | O7: 29.5 | P7: inch
C8: 150 | D8: =Arrow_Deflection($C8,D$3,ShaftLen,D$4,BraceHeight,DrawLen,D24) -> 24.06895364 | E8: 20.08855092 | F8: 16.50855987 | G8: 14.50915113 | H8: 12.67491237 | I8: 10.94482467 | J8: 9.252771127 | K8: 8.620544069 | L8: 7.539986076
C9: 175 | D9: =Arrow_Deflection($C9,D$3,ShaftLen,D$4,BraceHeight,DrawLen,D25) -> 25.41437658 | E9: 21.05309963 | F9: 17.15540033 | G9: 14.99448116 | H9: 13.02197902 | I9: 11.17100111 | J9: 9.37249767 | K9: 8.701195571 | L9: 7.572266493 | N9: Weight Tubes
C10: 210 | D10: =Arrow_Deflection($C10,D$3,ShaftLen,D$4,BraceHeight,DrawLen,D26) -> 27.36585861 | E10: 22.43198411 | F10: 18.06119612 | G10: 15.65404197 | H10: 13.49032047 | I10: 11.46537693 | J10: 9.516007678 | K10: 8.788779374 | L10: 7.598008284 | N10: GPI | O10: 8 | P10: gr/inch
N11: Wtube len | O11: 15 | P11: inches
B12: Arrow Weight (grain) | E12: Recommended: | G12: =IF(AnimalWeight<=60,300,IF(AnimalWeight<=200,400,IF(AnimalWeight<=800,500,IF(AnimalWeight<=1000,800,IF(AnimalWeight<=1500,900,1000))))) -> 900 | H12: gr
C13: =C5 -> 85 | D13: =D$3*ShaftLen+$O$10*$O$11+$C13+$O$13+$O$14+$O$15 -> 570.6 | E13: 591.25 | F13: 611.9 | G13: 632.55 | H13: 653.2 | I13: 673.85 | J13: 694.5 | K13: 688.6 | L13: 738.75 | N13: Nock | O13: 10 | P13: gr | R13: same size | T13: 0.9 | U13: =VLOOKUP(O16,R13:T15,3) -> 0.9
C14: 100 | D14: 585.6 | E14: 606.25 | F14: 626.9 | G14: 647.55 | H14: 668.2 | I14: 688.85 | J14: 709.5 | K14: 703.6 | L14: 753.75 | N14: Flights | O14: 40 | P14: gr | R14: thicker than ferrule | T14: 0.6
C15: 125 | D15: 610.6 | E15: 631.25 | F15: 651.9 | G15: 672.55 | H15: 693.2 | I15: 713.85 | J15: 734.5 | K15: 728.6 | L15: 778.75 | N15: Insert | O15: 115 | P15: gr | R15: thinner than ferule | T15: 1
C16: 150 | D16: 635.6 | E16: 656.25 | F16: 676.9 | G16: 697.55 | H16: 718.2 | I16: 738.85 | J16: 759.5 | K16: 753.6 | L16: 803.75 | N16: shaft | O16: same size
C17: 175 | D17: 660.6 | E17: 681.25 | F17: 701.9 | G17: 722.55 | H17: 743.2 | I17: 763.85 | J17: 784.5 | K17: 778.6 | L17: 828.75
C18: 210 | D18: 695.6 | E18: 716.25 | F18: 736.9 | G18: 757.55 | H18: 778.2 | I18: 798.85 | J18: 819.5 | K18: 813.6 | L18: 863.75
O19: mass | P19: speed | Q19: Ek | R19: cMon
B20: Arrow Speed (fps) | N20: Arrow1 | O20: 439.5 | P20: 298.4 | Q20: =O20*P20^2/450240 -> 86.91854371 | R20: =O20*P20/32/70 -> 58.54767857
C21: =C13 -> 85 | D21: =Arrow_VMK(Et,Mf,Kf,,D13) -> 265.9495793 | E21: 261.6030979 | F21: 257.4226303 | G21: 253.3965407 | H21: 249.5143152 | I21: 245.7664283 | J21: 242.1442279 | K21: 243.1667901 | L21: 234.7698833 | N21: Arrow2 | O21: 608 | P21: 258.2 | Q21: =O21*P21^2/450240 -> 90.0268344 | R21: =O21*P21/32/70 -> 70.08285714
C22: =C14 -> 100 | D22: =Arrow_VMK(Et,Mf,Kf,,D14) -> 262.7753114 | E22: 258.5506283 | F22: 254.4833893 | G22: 250.5627875 | H22: 246.7790391 | I22: 243.1232638 | J22: 239.5873813 | K22: 240.5858416 | L22: 232.3807848 | N22: Arrow3 | O22: 1293 | P22: 170 | Q22: 82.9950693 | R22: 98.12946429
C23: 125 | D23: =Arrow_VMK(Et,Mf,Kf,,D15) -> 257.6811384 | E23: 253.6456512 | F23: 249.7546595 | G23: 245.9985792 | H23: 242.3687064 | I23: 238.8571178 | J23: 235.4565842 | K23: 236.4172294 | L23: 228.5136829 | N23: To use Ek only, supply just Arrow 1
C24: 150 | D24: =Arrow_VMK(Et,Mf,Kf,,D16) -> 252.8143216 | E24: 248.9525152 | F24: 245.223717 | G24: 241.6193955 | H24: 238.1317802 | I24: 234.7537784 | J24: 231.4789017 | K24: 232.4044141 | L24: 224.7815541 | N24: To use virtual mass model, supply Arrow 2 also.
C25: 175 | D25: =Arrow_VMK(Et,Mf,Kf,,D17) -> 248.1562701 | E25: 244.4543758 | F25: 240.8752609 | G25: 237.4113046 | H25: 234.0555468 | I25: 230.8016184 | J25: 227.6436787 | K25: 228.5364737 | L25: 221.1755038 | N25: To use VMK model, supply all three
C26: 210 | D26: =Arrow_VMK(Et,Mf,Kf,,D18) -> 241.9546492 | E26: 238.4563265 | F26: 235.0682601 | G26: 231.7839076 | H26: 228.5972729 | I26: 225.5028504 | J26: 222.4955753 | K26: 223.3461834 | L26: 216.3236404
B28: FOC (from string seat) | N28: Et | O28: =Arrow_SetVMKmodel($O$20,$P$20,$O$21,$P$21,$O$22,$P$22,3) -> 112.3208223 | P28: vt.lbs
C29: =C38 -> 85 | D29: =Arrow_FOC2($C38*(ShaftLen+1)+InsertWeight*(ShaftLen)+WeightTubeGPI*WeightTubeLength*(ShaftLen+0.5-WeightTubeLength/2)+D$3*ShaftLen*(ShaftLen+0.5)/2+FlightsWeight*3,D13,ShaftLen+0.5) -> 19.01507185 | E29: 18.35095137 | F29: 17.7316555 | G29: 17.15279425 | H29: 16.61053276 | I29: 16.10150627 | J29: 15.62275018 | K29: 15.75660761 | L29: 14.68697124 | N29: Mf | O29: =Arrow_SetVMKmodel($O$20,$P$20,$O$21,$P$21,$O$22,$P$22,1) -> 115.0203935 | P29: gr
C30: 100 | D30: =Arrow_FOC2($C39*(ShaftLen+1)+InsertWeight*(ShaftLen)+WeightTubeGPI*WeightTubeLength*(ShaftLen+0.5-WeightTubeLength/2)+D$3*ShaftLen*(ShaftLen+0.5)/2+FlightsWeight*3,D14,ShaftLen+0.5) -> 19.85143443 | E30: 19.17525773 | F30: 18.54362737 | G30: 17.95228168 | H30: 17.39748578 | I30: 16.87595267 | J30: 16.38477801 | K30: 16.52217169 | L30: 15.42288557 | N30: Kf | O30: =Arrow_SetVMKmodel($O$20,$P$20,$O$21,$P$21,$O$22,$P$22,2) -> 1.581405353e-07 | P30: /gr/gr
C31: 125 | D31: =Arrow_FOC2($C40*(ShaftLen+1)+InsertWeight*(ShaftLen)+WeightTubeGPI*WeightTubeLength*(ShaftLen+0.5-WeightTubeLength/2)+D$3*ShaftLen*(ShaftLen+0.5)/2+FlightsWeight*3,D15,ShaftLen+0.5) -> 21.15405612 | E31: 20.4620462 | F31: 19.81387738 | G31: 19.20551136 | H31: 18.63339104 | I31: 18.0943709 | J31: 17.58565918 | K31: 17.72806295 | L31: 16.58640984
C32: 150 | D32: =Arrow_FOC2($C41*(ShaftLen+1)+InsertWeight*(ShaftLen)+WeightTubeGPI*WeightTubeLength*(ShaftLen+0.5-WeightTubeLength/2)+D$3*ShaftLen*(ShaftLen+0.5)/2+FlightsWeight*3,D16,ShaftLen+0.5) -> 22.354206 | E32: 21.65079365 | F32: 20.99029891 | G32: 20.36891023 | H32: 19.78325443 | I32: 19.23033543 | J32: 18.70748299 | K32: 18.85394551 | L32: 17.67755314
C33: 175 | D33: =Arrow_FOC2($C42*(ShaftLen+1)+InsertWeight*(ShaftLen)+WeightTubeGPI*WeightTubeLength*(ShaftLen+0.5-WeightTubeLength/2)+D$3*ShaftLen*(ShaftLen+0.5)/2+FlightsWeight*3,D17,ShaftLen+0.5) -> 23.46351801 | E33: 22.75229358 | F33: 22.08291779 | G33: 21.45180264 | H33: 20.85575888 | I33: 20.29194214 | J33: 19.75780752 | K33: 19.90752633 | L33: 18.70286576
C34: 210 | D34: =Arrow_FOC2($C43*(ShaftLen+1)+InsertWeight*(ShaftLen)+WeightTubeGPI*WeightTubeLength*(ShaftLen+0.5-WeightTubeLength/2)+D$3*ShaftLen*(ShaftLen+0.5)/2+FlightsWeight*3,D18,ShaftLen+0.5) -> 24.88259536 | E34: 24.16521233 | F34: 23.48803546 | G34: 22.84777682 | H34: 22.24149747 | I34: 21.66656235 | J34: 21.12060199 | K34: 21.2737627 | L34: 20.03859141
O35: Animal mass | Q35: 1200 | R35: kg
B36: Percentage Arrow Penetration (PA% - of Average body width) | O36: Ek-Loss | Q36: =AnimalWeight^(0.25)*4.5 -> 26.48547861 | R36: vt.lbs
B37: Ro | M37: A | O37: Average Body Width | Q37: =AnimalWeight^(0.5) -> 34.64101615 | R37: inches
B38: 8 | C38: =C21 -> 85 | D38: =Arrow_PenetrationDepth3($B38,D13,D21,0.3,$M38,0.001,EkLoss,$Q$37,EkLoss)/$Q$37*100*(D29^9/((36-D29)^9+D29^9)+1)*$U$13 -> 143.3290479 | E38: 133.2599604 | F38: 122.1245291 | G38: 112.3519843 | H38: 104.8629079 | I38: 99.93373119 | J38: 96.78309914 | K38: 97.54709173 | L38: 2683.348663 | M38: 1.5 | O38: (energy loss breaking rib on entry - 4.5 x weight^0.25)
B39: 8 | C39: 100 | D39: =Arrow_PenetrationDepth3($B39,D14,D22,0.3,$M39,0.001,EkLoss,$Q$37,EkLoss)/$Q$37*100*(D30^9/((36-D30)^9+D30^9)+1)*$U$13 -> 155.8597706 | E39: 149.7932562 | F39: 140.616126 | G39: 129.6826572 | H39: 119.3585095 | I39: 110.9180687 | J39: 104.7685676 | K39: 106.323296 | L39: 2775.771921 | M39: 1.5 | O39: (square root of weight)
B40: 8 | C40: 125 | D40: =Arrow_PenetrationDepth3($B40,D15,D23,0.3,$M40,0.001,EkLoss,$Q$37,EkLoss)/$Q$37*100*(D31^9/((36-D31)^9+D31^9)+1)*$U$13 -> 167.030037 | E40: 165.9737183 | F40: 162.7162522 | G40: 156.4091057 | H40: 147.6347541 | I40: 137.140209 | J40: 3628.099997 | K40: 3717.831754 | L40: 3102.140793 | M40: 1.5
B41: 8 | C41: 150 | D41: =Arrow_PenetrationDepth3($B41,D16,D24,0.3,$M41,0.001,EkLoss,$Q$37,EkLoss)/$Q$37*100*(D32^9/((36-D32)^9+D32^9)+1)*$U$13 -> 172.0620847 | E41: 173.2084246 | F41: 173.0316912 | G41: 171.2426613 | H41: 4819.335025 | I41: 4604.931914 | J41: 4334.25485 | K41: 4416.279992 | L41: 3685.763595 | M41: 1.5
B42: 8 | C42: 175 | D42: =Arrow_PenetrationDepth3($B42,D17,D25,0.3,$M42,0.001,EkLoss,$Q$37,EkLoss)/$Q$37*100*(D33^9/((36-D33)^9+D33^9)+1)*$U$13 -> 175.417465 | E42: 176.8915842 | F42: 177.8223529 | G42: 5114.512412 | H42: 5053.015154 | I42: 4955.403526 | J42: 4811.077999 | K42: 4857.561902 | L42: 4331.598745 | M42: 1.5
B43: 8 | C43: 210 | D43: =Arrow_PenetrationDepth3($B43,D18,D26,0.3,$M43,0.001,EkLoss,$Q$37,EkLoss)/$Q$37*100*(D34^9/((36-D34)^9+D34^9)+1)*$U$13 -> 178.7333552 | E43: 5186.756334 | F43: 5182.022614 | G43: 5173.066263 | H43: 5156.981292 | I43: 5129.460293 | J43: 5084.554269 | K43: 5099.570678 | L43: 4894.246749 | M43: 1.5
C45: Trad. Bow and Arrow Frequency match (only valid for homogenous shafts)
D46: =D4 -> 700 | E46: 600 | F46: 500 | G46: 450 | H46: 400 | I46: 350 | J46: 300 | K46: 280 | L46: 250
C47: =C29 -> 85 | D47: =Arrow_Frequency($C5+WeightTubeGPI*WeightTubeLength,ShaftLen,D$4,D$3) - Arrow_FrequencyForBow2(DrawLen,BraceHeight,D21,D13) -> -15.53554893 | E47: =Arrow_Frequency($C5+WeightTubeGPI*WeightTubeLength,ShaftLen,E$4,E$3) - Arrow_FrequencyForBow2(DrawLen,BraceHeight,E21,E13) -> -12.65109708 | F47: =Arrow_Frequency($C5+WeightTubeGPI*WeightTubeLength,ShaftLen,F$4,F$3) - Arrow_FrequencyForBow2(DrawLen,BraceHeight,F21,F13) -> -8.608841916 | G47: =Arrow_Frequency($C5+WeightTubeGPI*WeightTubeLength,ShaftLen,G$4,G$3) - Arrow_FrequencyForBow2(DrawLen,BraceHeight,G21,G13) -> -6.739757913 | H47: =Arrow_Frequency($C5+WeightTubeGPI*WeightTubeLength,ShaftLen,H$4,H$3) - Arrow_FrequencyForBow2(DrawLen,BraceHeight,H21,H13) -> -4.296327236 | I47: =Arrow_Frequency($C5+WeightTubeGPI*WeightTubeLength,ShaftLen,I$4,I$3) - Arrow_FrequencyForBow2(DrawLen,BraceHeight,I21,I13) -> -1.154499769 | J47: =Arrow_Frequency($C5+WeightTubeGPI*WeightTubeLength,ShaftLen,J$4,J$3) - Arrow_FrequencyForBow2(DrawLen,BraceHeight,J21,J13) -> 2.903643367 | K47: =Arrow_Frequency($C5+WeightTubeGPI*WeightTubeLength,ShaftLen,K$4,K$3) - Arrow_FrequencyForBow2(DrawLen,BraceHeight,K21,K13) -> 5.764352354 | L47: =Arrow_Frequency($C5+WeightTubeGPI*WeightTubeLength,ShaftLen,L$4,L$3) - Arrow_FrequencyForBow2(DrawLen,BraceHeight,L21,L13) -> 6.908125611
C48: 100 | D48: =Arrow_Frequency($C6+WeightTubeGPI*WeightTubeLength,ShaftLen,D$4,D$3) - Arrow_FrequencyForBow2(DrawLen,BraceHeight,D22,D14) -> -14.75167354 | E48: =Arrow_Frequency($C6+WeightTubeGPI*WeightTubeLength,ShaftLen,E$4,E$3) - Arrow_FrequencyForBow2(DrawLen,BraceHeight,E22,E14) -> -11.90411626 | F48: =Arrow_Frequency($C6+WeightTubeGPI*WeightTubeLength,ShaftLen,F$4,F$3) - Arrow_FrequencyForBow2(DrawLen,BraceHeight,F22,F14) -> -7.898456377 | G48: =Arrow_Frequency($C6+WeightTubeGPI*WeightTubeLength,ShaftLen,G$4,G$3) - Arrow_FrequencyForBow2(DrawLen,BraceHeight,G22,G14) -> -6.060106247 | H48: =Arrow_Frequency($C6+WeightTubeGPI*WeightTubeLength,ShaftLen,H$4,H$3) - Arrow_FrequencyForBow2(DrawLen,BraceHeight,H22,H14) -> -3.646520728 | I48: =Arrow_Frequency($C6+WeightTubeGPI*WeightTubeLength,ShaftLen,I$4,I$3) - Arrow_FrequencyForBow2(DrawLen,BraceHeight,I22,I14) -> -0.5340406481 | J48: =Arrow_Frequency($C6+WeightTubeGPI*WeightTubeLength,ShaftLen,J$4,J$3) - Arrow_FrequencyForBow2(DrawLen,BraceHeight,J22,J14) -> 3.494718849 | K48: =Arrow_Frequency($C6+WeightTubeGPI*WeightTubeLength,ShaftLen,K$4,K$3) - Arrow_FrequencyForBow2(DrawLen,BraceHeight,K22,K14) -> 6.356687327 | L48: =Arrow_Frequency($C6+WeightTubeGPI*WeightTubeLength,ShaftLen,L$4,L$3) - Arrow_FrequencyForBow2(DrawLen,BraceHeight,L22,L14) -> 7.449005375
C49: 125 | D49: =Arrow_Frequency($C7+WeightTubeGPI*WeightTubeLength,ShaftLen,D$4,D$3) - Arrow_FrequencyForBow2(DrawLen,BraceHeight,D23,D15) -> -13.47224246 | E49: =Arrow_Frequency($C7+WeightTubeGPI*WeightTubeLength,ShaftLen,E$4,E$3) - Arrow_FrequencyForBow2(DrawLen,BraceHeight,E23,E15) -> -10.68153431 | F49: =Arrow_Frequency($C7+WeightTubeGPI*WeightTubeLength,ShaftLen,F$4,F$3) - Arrow_FrequencyForBow2(DrawLen,BraceHeight,F23,F15) -> -6.732027852 | G49: =Arrow_Frequency($C7+WeightTubeGPI*WeightTubeLength,ShaftLen,G$4,G$3) - Arrow_FrequencyForBow2(DrawLen,BraceHeight,G23,G15) -> -4.941397222 | H49: =Arrow_Frequency($C7+WeightTubeGPI*WeightTubeLength,ShaftLen,H$4,H$3) - Arrow_FrequencyForBow2(DrawLen,BraceHeight,H23,H15) -> -2.574049259 | I49: =Arrow_Frequency($C7+WeightTubeGPI*WeightTubeLength,ShaftLen,I$4,I$3) - Arrow_FrequencyForBow2(DrawLen,BraceHeight,I23,I15) -> 0.4931139327 | J49: =Arrow_Frequency($C7+WeightTubeGPI*WeightTubeLength,ShaftLen,J$4,J$3) - Arrow_FrequencyForBow2(DrawLen,BraceHeight,J23,J15) -> 4.476717528 | K49: =Arrow_Frequency($C7+WeightTubeGPI*WeightTubeLength,ShaftLen,K$4,K$3) - Arrow_FrequencyForBow2(DrawLen,BraceHeight,K23,K15) -> 7.341615601 | L49: =Arrow_Frequency($C7+WeightTubeGPI*WeightTubeLength,ShaftLen,L$4,L$3) - Arrow_FrequencyForBow2(DrawLen,BraceHeight,L23,L15) -> 8.352697943
C50: 150 | D50: =Arrow_Frequency($C8+WeightTubeGPI*WeightTubeLength,ShaftLen,D$4,D$3) - Arrow_FrequencyForBow2(DrawLen,BraceHeight,D24,D16) -> -12.22992657 | E50: =Arrow_Frequency($C8+WeightTubeGPI*WeightTubeLength,ShaftLen,E$4,E$3) - Arrow_FrequencyForBow2(DrawLen,BraceHeight,E24,E16) -> -9.490987702 | F50: =Arrow_Frequency($C8+WeightTubeGPI*WeightTubeLength,ShaftLen,F$4,F$3) - Arrow_FrequencyForBow2(DrawLen,BraceHeight,F24,F16) -> -5.592422238 | G50: =Arrow_Frequency($C8+WeightTubeGPI*WeightTubeLength,ShaftLen,G$4,G$3) - Arrow_FrequencyForBow2(DrawLen,BraceHeight,G24,G16) -> -3.845614872 | H50: =Arrow_Frequency($C8+WeightTubeGPI*WeightTubeLength,ShaftLen,H$4,H$3) - Arrow_FrequencyForBow2(DrawLen,BraceHeight,H24,H16) -> -1.520651958 | I50: =Arrow_Frequency($C8+WeightTubeGPI*WeightTubeLength,ShaftLen,I$4,I$3) - Arrow_FrequencyForBow2(DrawLen,BraceHeight,I24,I16) -> 1.505092968 | J50: =Arrow_Frequency($C8+WeightTubeGPI*WeightTubeLength,ShaftLen,J$4,J$3) - Arrow_FrequencyForBow2(DrawLen,BraceHeight,J24,J16) -> 5.44761283 | K50: =Arrow_Frequency($C8+WeightTubeGPI*WeightTubeLength,ShaftLen,K$4,K$3) - Arrow_FrequencyForBow2(DrawLen,BraceHeight,K24,K16) -> 8.316103694 | L50: =Arrow_Frequency($C8+WeightTubeGPI*WeightTubeLength,ShaftLen,L$4,L$3) - Arrow_FrequencyForBow2(DrawLen,BraceHeight,L24,L16) -> 9.251223369
C51: 175 | D51: =Arrow_Frequency($C9+WeightTubeGPI*WeightTubeLength,ShaftLen,D$4,D$3) - Arrow_FrequencyForBow2(DrawLen,BraceHeight,D25,D17) -> -11.02623251 | E51: =Arrow_Frequency($C9+WeightTubeGPI*WeightTubeLength,ShaftLen,E$4,E$3) - Arrow_FrequencyForBow2(DrawLen,BraceHeight,E25,E17) -> -8.334661147 | F51: =Arrow_Frequency($C9+WeightTubeGPI*WeightTubeLength,ShaftLen,F$4,F$3) - Arrow_FrequencyForBow2(DrawLen,BraceHeight,F25,F17) -> -4.482583163 | G51: =Arrow_Frequency($C9+WeightTubeGPI*WeightTubeLength,ShaftLen,G$4,G$3) - Arrow_FrequencyForBow2(DrawLen,BraceHeight,G25,G17) -> -2.776169975 | H51: =Arrow_Frequency($C9+WeightTubeGPI*WeightTubeLength,ShaftLen,H$4,H$3) - Arrow_FrequencyForBow2(DrawLen,BraceHeight,H25,H17) -> -0.4902346493 | I51: =Arrow_Frequency($C9+WeightTubeGPI*WeightTubeLength,ShaftLen,I$4,I$3) - Arrow_FrequencyForBow2(DrawLen,BraceHeight,I25,I17) -> 2.497448307 | J51: =Arrow_Frequency($C9+WeightTubeGPI*WeightTubeLength,ShaftLen,J$4,J$3) - Arrow_FrequencyForBow2(DrawLen,BraceHeight,J25,J17) -> 6.402337714 | K51: =Arrow_Frequency($C9+WeightTubeGPI*WeightTubeLength,ShaftLen,K$4,K$3) - Arrow_FrequencyForBow2(DrawLen,BraceHeight,K25,K17) -> 9.274800123 | L51: =Arrow_Frequency($C9+WeightTubeGPI*WeightTubeLength,ShaftLen,L$4,L$3) - Arrow_FrequencyForBow2(DrawLen,BraceHeight,L25,L17) -> 10.13880116
C52: 210 | D52: =Arrow_Frequency($C10+WeightTubeGPI*WeightTubeLength,ShaftLen,D$4,D$3) - Arrow_FrequencyForBow2(DrawLen,BraceHeight,D26,D18) -> -9.405771615 | E52: =Arrow_Frequency($C10+WeightTubeGPI*WeightTubeLength,ShaftLen,E$4,E$3) - Arrow_FrequencyForBow2(DrawLen,BraceHeight,E26,E18) -> -6.77415047 | F52: =Arrow_Frequency($C10+WeightTubeGPI*WeightTubeLength,ShaftLen,F$4,F$3) - Arrow_FrequencyForBow2(DrawLen,BraceHeight,F26,F18) -> -2.980789595 | G52: =Arrow_Frequency($C10+WeightTubeGPI*WeightTubeLength,ShaftLen,G$4,G$3) - Arrow_FrequencyForBow2(DrawLen,BraceHeight,G26,G18) -> -1.325898717 | H52: =Arrow_Frequency($C10+WeightTubeGPI*WeightTubeLength,ShaftLen,H$4,H$3) - Arrow_FrequencyForBow2(DrawLen,BraceHeight,H26,H18) -> 0.910284965 | I52: =Arrow_Frequency($C10+WeightTubeGPI*WeightTubeLength,ShaftLen,I$4,I$3) - Arrow_FrequencyForBow2(DrawLen,BraceHeight,I26,I18) -> 3.849517906 | J52: =Arrow_Frequency($C10+WeightTubeGPI*WeightTubeLength,ShaftLen,J$4,J$3) - Arrow_FrequencyForBow2(DrawLen,BraceHeight,J26,J18) -> 7.706637621 | K52: =Arrow_Frequency($C10+WeightTubeGPI*WeightTubeLength,ShaftLen,K$4,K$3) - Arrow_FrequencyForBow2(DrawLen,BraceHeight,K26,K18) -> 10.58496388 | L52: =Arrow_Frequency($C10+WeightTubeGPI*WeightTubeLength,ShaftLen,L$4,L$3) - Arrow_FrequencyForBow2(DrawLen,BraceHeight,L26,L18) -> 11.35677331

Sheet Arrow Builder
B3: Using Insert Weight, single/double shafts and weight tube | L3: Using arbitrary components | S3: Using weight tubes and a positioned weight
I5: L/2
B6: BH | D6: 125 | E6: gr | I6: Sw | M6: DrawWeight | N6: 72 | O6: lbs | S6: Length | T6: 30 | U6: inch | V6: id | W6: 6 | X6: mm
B7: Insert Weights | D7: 70 | E7: gr | F7: =D6+D7 -> 195 | G7: gr | H7: =F7 -> 195 | I7: =D20 -> 29.5 | M7: Spine | N7: 280 | S7: Spine | T7: 280
H8: 0 | I8: =D20/2 -> 14.75 | M8: Length | N8: 30 | O8: inch | S8: Draw Weight | T8: 72 | U8: lbs
B9: Weight Tube | D9: 0 | E9: gpi | F9: =(D20-2)*D9 -> 0 | G9: gr | H9: =F13 -> 345.15 | I9: =D20/2 -> 14.75 | L9: desc | M9: Weight | N9: COG Pos* | T9: gr | U9: gpi | V9: from | W9: to | X9: L | Y9: COG | Z9: Wt
H10: =F17 -> 0 | I10: =D20/2 -> 14.75 | L10: # | M10: =10.7*30 -> 321 | N10: =N8/2 -> 15 | O10: gr @ inch | S10: shaft | U10: 10.7 | V10: 0.5 | W10: =V11 -> 29 | X10: =W10-V10 -> 28.5 | Y10: =X10/2+V10 -> 14.75 | Z10: =IF(T10>0,T10,U10*X10) -> 304.95
B11: Outer # | H11: =D23 -> 10 | I11: 0.5 | L11: filler weight | M11: =5*24 -> 120 | N11: 15 | O11: gr @ inch | S11: point | T11: 210 | V11: =W11-X11 -> 29 | W11: =T6 -> 30 | X11: 1 | Y11: =X11/2+V11 -> 29.5 | Z11: =IF(T11>0,T11,U11*X11) -> 210
B12: Spine | D12: 280 | H12: =D24 -> 15 | I12: =D20 -> 29.5 | L12: tip | M12: 210 | N12: =N8+0.5 -> 30.5 | O12: gr @ inch | S12: insert | T12: 15 | V12: =W12-X12 -> 28 | W12: =V11 -> 29 | X12: 1 | Y12: =X12/2+V12 -> 28.5 | Z12: =IF(T12>0,T12,U12*X12) -> 15
B13: Weight | D13: 11.7 | E13: gpi | F13: =D13*D20 -> 345.15 | G13: gr | H13: =D25 -> 40 | I13: =3 -> 3 | L13: insert | M13: 15 | N13: =N8-0.5 -> 29.5 | O13: gr @ inch | S13: fletch | T13: 30 | V13: 1 | W13: 5 | X13: =W13-V13 -> 4 | Y13: 3 | Z13: 30
L14: nock | M14: 10 | N14: 0 | O14: gr @ inch | S14: nock | T14: 10 | V14: 0 | W14: 1 | X14: =W14-V14 -> 1 | Y14: 0.5 | Z14: 10
B15: Inner # | L15: fletch | M15: 40 | N15: 3 | O15: gr @ inch | X15: =W15-V15 -> 0 | Y15: 0 | Z15: 0
B16: Spine | D16: 1000000 | E16: should be 1e6 if you do not use 2 shafts | L16: insert weight | M16: 100 | N16: =N8-1.5 -> 28.5 | O16: gr @ inch | X16: =W16-V16 -> 0 | Y16: 0 | Z16: 0
B17: Weight | D17: 0 | E17: gpi | F17: =D17*(D20-2) -> 0 | G17: gr | O17: gr @ inch | S17: tube | V17: =W14 -> 1 | W17: =V18 -> 3 | X17: =W17-V17 -> 2 | Y17: 2 | Z17: 0
C18: total | D18: =D13+D17 -> 11.7 | E18: gpi | F18: =F13+F17 -> 345.15 | G18: gr | O18: gr @ inch | S18: weight | V18: =W18-X18 -> 3 | W18: =V19 -> 3 | X18: =(T18*0.065/W23*1000/PI()/(W6/2)^2)/25.4 -> 0 | Y18: =X18/2+V18 -> 3 | Z18: =IF(T18>0,T18,U18*X18) -> 0
L19: Weight | M19: =SUM(M10:M18) -> 816 | N19: gr | S19: tube | V19: =W19-X19 -> 3 | W19: =V12 -> 28 | X19: 25 | Y19: 15.5 | Z19: 0
B20: Shaft length | D20: 29.5 | E20: inches | L20: Fc | M20: =Arrow_Fc(N7,M10:M18,N10:N18) -> 29.07358932 | N20: lbs
B21: Draw Weight | D21: 75 | E21: lbs | L21: Fc% | M21: =Arrow_FcPerc(M20,N6) -> 40.37998516 | N21: % | S21: gr/lbs | T21: =T22/T8 -> 7.915972222 | U21: gr/lbs
L22: FOC | M22: =Arrow_FOC(M10:M18,N10:N18) -> 16.02579556 | N22: % | S22: Weight | T22: =SUM(Z10:Z19) -> 569.95 | U22: gr | W22: weight denisty
B23: Nock | D23: 10 | E23: gr | S23: Fc | T23: =Arrow_Fc(T7,Z10:Z19,Y10:Y19) -> 30.76150584 | U23: lbs | W23: 2.7 | X23: g/cm3
B24: Insert | D24: 15 | E24: gr | S24: Fc% | T24: =Arrow_FcPerc(T23,T8) -> 42.72431367 | U24: %
B25: Fletches | D25: 40 | E25: gr | L25: *component's cog distance (inches) from string when nocked | S25: FOC | T25: =Arrow_FOC(Z10:Z19,Y10:Y19) -> 16.70530124 | U25: %
B27: Total S-Spine | D27: =(D12*D16)/(D12+D16) -> 279.9216219
B28: Total Weight | D28: =F7+F9+F13+F17+D23+D24+D25 -> 605.15 | E28: gr
B29: Fc | D29: =Arrow_Fc(D27,H7:H13,I7:I13) -> 32.11088698 | E29: lbs
B30: Fc% | D30: =Arrow_FcPerc(D29,D21) -> 42.81451597 | E30: % | F30: should be 38 to about 51% | L30: mm>inch | M30: 6 | N30: =M30/25.4 -> 0.2362204724
B31: FOC | D31: =Arrow_FOC(H7:H13,I7:I13) -> 13.92006744 | E31: % | F31: should be >10%, and preferably >15% | L31: inch>mm | M31: 3.05 | N31: =M31*25.4 -> 77.47
B32: Fn | D32: =Arrow_Frequency(F7+D24,D20,D27,D18) -> 70.7034448 | E32: Hz
B36: Using measured COG | U36: Getting the combined s-spine for partial shafts
L37: Calculating GPI for weighing filler medium (wax/epoxy/silicon) | V37: length | W37: s-spine
B38: Nock point to balance | E38: 19.4 | F38: inch or mm | S38: g/cm3 | U38: Part A | V38: 25 | W38: 280
B39: Nockpoint to center of tip | E39: 30.5 | F39: inch or mm | L39: filler density | M39: 2.7 | N39: g/cm3 | Q39: Aluminum | R39: 2.7 | U39: Part B | V39: 5 | W39: 100
B40: FOC | E40: =(E38/E39 - 0.5)*100 -> 13.60655738 | L40: inner dia | M40: 0.23622 | N40: inch | O40: =M40*2.54 -> 0.5999988 | Q40: Copper | R40: 8.96 | U40: Part C
L41: length | M41: 3 | N41: inch | O41: =M41*2.54 -> 7.62 | Q41: lead | R41: 11.35 | U41: Combined | W41: =(W38*V38^2+W39*V39^2+W40*V40^3)/(V38^2+V39^2+V40^2) -> 273.0769231
L42: volume | M42: =(M40/2)^2*PI()*M41 -> 0.1314753896 | N42: cub.inch | O42: =(O40/2)^2*PI()*O41 -> 2.154495624 | Q42: Iron | R42: 7.9
L43: weight | M43: =O43/0.065 -> 89.4944336 | N43: gr | O43: =M39*O42 -> 5.817138184 | P43: g
L44: gpi | M44: =O43/0.065/M41 -> 29.83147787

Sheet vmK model
B6: Et = (m+M+Km^3)v^2/450240
C8: m | D8: v | E8: Mom | F8: KE
C9: grain | D9: fps | E9: centi-slugs | F9: ft.lbs
B10: #1 | C10: 439.5 | D10: 298.4 | E10: =C10*D10*200/450240 -> 58.25639659 | F10: =C10*D10*D10/450240 -> 86.91854371
B11: #2 | C11: 608 | D11: 258.2 | E11: =C11*D11*200/450240 -> 69.73418621 | F11: =C11*D11*D11/450240 -> 90.0268344
B12: #3 | C12: 1293 | D12: 170 | E12: =C12*D12*200/450240 -> 97.641258 | F12: =C12*D12*D12/450240 -> 82.9950693
C15: Et | D15: =Arrow_SetVMKmodel($C$10,$D$10,$C$11,$D$11,$C$12,$D$12,3) -> 112.3208223 | E15: ft.lbs
C16: K | D16: =Arrow_SetVMKmodel($C$10,$D$10,$C$11,$D$11,$C$12,$D$12,2) -> 1.581405353e-07 | E16: grain^-2
C17: M | D17: =Arrow_SetVMKmodel($C$10,$D$10,$C$11,$D$11,$C$12,$D$12,1) -> 115.0203935 | E17: grain
C22: m | D22: v | E22: Mom | F22: KE
C23: 400 | D23: =(($D$15*450240)/(C23+$D$17+$D$16*C23^$I$8))^0.5 -> 313.3574049 | E23: =C23*D23*2/450240*100 -> 55.678288 | F23: =C23*D23*D23/450240 -> 87.23601917
C24: 425 | D24: =(($D$15*450240)/(C24+$D$17+$D$16*C24^$I$8))^0.5 -> 306.018086 | E24: =C24*D24*2/450240*100 -> 57.77260419 | F24: =C24*D24*D24/450240 -> 88.39730879
C25: 450 | D25: 299.1714273 | E25: 59.80239085 | F25: 89.45583313
C26: 475 | D26: 292.7646683 | E26: 61.77292885 | F26: 90.42465512
C27: 500 | D27: 286.7526345 | E27: 63.68884029 | F27: 91.3147137
C28: 525 | D28: 281.0963904 | E28: 65.55419552 | F28: 92.13523868
C29: 550 | D29: 275.7621734 | E29: 67.37259922 | F29: 92.89407193
C30: 575 | D30: 270.7205426 | E30: 69.14726012 | F30: 93.5979189
C31: 600 | D31: 265.9456926 | E31: 70.88104814 | F31: 94.2525472
C32: 625 | D32: 261.414896 | E32: 72.57654139 | F32: 94.86294508
C33: 650 | D33: 257.1080466 | E33: 74.23606534 | F33: 95.43344874
C34: 675 | D34: 253.0072836 | E34: 75.8617255 | F34: 95.9678455
C35: 700 | D35: 249.0966788 | E35: 77.45543495 | F35: 96.469458
C36: 725 | D36: 245.3619758 | E36: 79.01893766 | F36: 96.94121335
C37: 750 | D37: 241.7903711 | E37: 80.55382833 | F37: 97.38570024
C38: 775 | D38: 238.3703291 | E38: 82.06156941 | F38: 97.80521652
C39: 800 | D39: 235.0914249 | E39: 83.54350566 | F39: 98.20180894
C40: 825 | D40: 231.9442108 | E40: 85.00087683 | F40: 98.57730647
C41: 850 | D41: 228.9201013 | E41: 86.43482858 | F41: 98.93334858
C42: 875 | D42: 226.0112747 | E42: 87.84642206 | F42: 99.27140913
C43: 900 | D43: 223.2105877 | E43: 89.23664222 | F43: 99.59281679
C44: 925 | D44: 220.511502 | E44: 90.60640517 | F44: 99.89877246
C45: 950 | D45: 217.9080193 | E45: 91.95656464 | F45: 100.1903643
C46: 975 | D46: 215.3946259 | E46: 93.28791765 | F46: 100.4685806
C47: 1000 | D47: 212.9662431 | E47: 94.60120964 | F47: 100.7343211

Sheet speed
B4: Chrony with Sight | G4: Chrony with butt | L4: Sight adjustements
B5: Peep to Sight | E5: 845 | F5: mm | G5: Arrow drop | I5: 21 | J5: inch | L5: 1" arrow movement @
B6: pin to pin | E6: 20 | F6: mm | G6: Y1 | I6: 20 | J6: Y | M6: 20 | N6: Y = | O6: =1/M6*$E$5/36 -> 1.173611111 | P6: mm
B7: Y1 | E7: 20 | F7: Y | G7: Y2 | I7: 40 | J7: Y | M7: 30 | O7: =1/M7*$E$5/36 -> 0.7824074074
B8: Y2 | E8: 50 | F8: Y | M8: 40 | O8: 0.5868055556
M9: 50 | O9: 0.4694444444
B10: Speed | E10: =(52.74*E5/E6*(E8-E7))^0.5 -> 258.5497051 | F10: fps | I10: =(1738*I7/I5*(I7-I6))^0.5 -> 257.3121136 | J10: fps | M10: 60 | O10: 0.3912037037
M11: 70 | O11: 0.3353174603

Sheet virtual M
B2: Bow Analysis
B3: DL | C3: 30 | D3: inch | G3: M | H3: V | I3: KE | J3: mom | K3: E%
B4: DW | C4: 74 | D4: lbs | G4: 350 | H4: =(450240*$C$15/(G4+$C$13))^0.5 -> 334.1070089 | I4: =G4*H4*H4/450240 -> 86.77510371 | J4: =G4*H4/450240*2 -> 0.5194449766 | K4: =I4/$C$15*100 -> 79.28391686
B5: BH | C5: 7.25 | D5: inch | G5: 375 | H5: 325.0302909 | I5: 87.99031347 | J5: =G5*H5/450240*2 -> 0.5414283896 | K5: 80.39421907
G6: 400 | H6: 316.6552915 | I6: 89.08188847 | J6: 0.5626426644 | K6: 81.39155975
B7: mass | C7: speed | E7: KE | G7: 425 | H7: 308.8960179 | I7: 90.06778315 | J7: 0.5831592377 | K7: 82.29234337
B8: grain | C8: fps | E8: ft-lbs | F8: E% | G8: 450 | H8: 301.680542 | I8: 90.962636 | J8: 0.6030394629 | K8: 83.10994469
B9: 511 | C9: 286 | E9: =B9*C9*C9/450240 -> 92.83439055 | F9: =B9/(B9+$C$13)*100 -> 84.82011299 | G9: 475 | H9: 294.9481753 | I9: 91.77850124 | J9: 0.6223364573 | K9: 83.8553773
B10: 605 | C10: 266 | E10: =B10*C10*C10/450240 -> 95.07680348 | F10: =B10/(B10+$C$13)*100 -> 86.86894121 | G10: 500 | H10: 288.6473068 | I10: 92.52539504 | J10: 0.6410965414 | K10: 84.53779268
G11: 525 | H11: 282.7337288 | I11: 93.21170874 | J11: 0.659360375 | K11: 85.16485777
G12: 550 | H12: 277.1693252 | I12: 93.8445255 | J12: 0.6771638631 | K12: 85.74304425
B13: Mv | C13: =(E10-E9)/(C9^2-C10^2)*450240 -> 91.45144928 | D13: grain | G13: 575 | H13: 271.9210331 | I13: 94.42986568 | J13: 0.694538886 | K13: 86.27785274
G14: 600 | H14: 266.9600127 | I14: 94.97287894 | J14: 0.711513893 | K14: 86.77398834
B15: Et | C15: =(B9+C13)*C9*C9/450240 -> 109.448558 | D15: ft-lbs | G15: 625 | H15: 262.2609784 | I15: 95.47799618 | J15: 0.7281143902 | K15: 87.23549944
G16: 650 | H16: 257.8016548 | I16: 95.94905069 | J16: 0.7443633422 | K16: 87.66588839
B17: Emax | C17: =C4*(C3-C5)/12 -> 140.2916667 | D17: ft-lbs | G17: 675 | H17: 253.5623306 | I17: 96.38937562 | J17: 0.7602815085 | K17: 88.06820062
G18: 700 | H18: 249.525492 | I18: 96.80188299 | J18: 0.7758877238 | K18: 88.44509674
B19: CamE | C19: =C15/C17*100 -> 78.01501014 | D19: % | G19: 725 | H19: 245.6755165 | I19: 97.18912815 | J19: 0.7911991358 | K19: 88.79891151
G20: 750 | H20: 241.9984189 | I20: 97.55336277 | J20: 0.8062314062 | K20: 89.13170221
B22: Speed Predictions
B23: DL' | C23: 30 | D23: inch | G23: M | H23: V | I23: KE | J23: mom | K23: E%
B24: DW' | C24: 72 | D24: lbs | G24: 350 | H24: =(450240*$C$36/(G24+IF(C$34>0,C$34,C$13)))^0.5 -> 327.9498132 | I24: =G24*H24*H24/450240 -> 83.60625 | J24: 0.5098722221 | K24: =I24/$C$36*100 -> 79.54545455
B25: BH' | C25: 7.25 | D25: inch | G25: 375 | H25: 319.0121688 | I25: 84.76209677 | J25: 0.5314035329 | K25: 80.64516129
G26: 400 | H26: 310.7675659 | I26: 85.8 | J26: 0.552181176 | K26: 81.63265306
B27: mass' | C27: 600 | D27: grain | E27: =C27/C24 -> 8.333333333 | F27: gr/# | G27: 425 | H27: 303.1308321 | I27: 86.73713592 | J27: 0.5722752471 | K27: 82.52427184
G28: 450 | H28: 296.0307642 | I28: 87.5875 | J28: 0.5917459305 | K28: 83.33333333
B29: speed' | C29: =IF(C27>0,(450240*C36/(C27+IF(C34>0,C34,C13)))^0.5,0) -> 261.8841297 | D29: fps | G29: 475 | H29: 289.4073138 | I29: 88.36261062 | J29: 0.6106453183 | K29: 84.07079646
B30: KE' | C30: =C27*C29*C29/450240 -> 91.39565217 | D30: ft-lbs | G30: 500 | H30: 283.2094368 | I30: 89.0720339 | J30: 0.6290188273 | K30: 84.74576271
B31: E%' | C31: =C30/C36*100 -> 86.95652174 | D31: % | G31: 525 | H31: 277.3934284 | I31: 89.72378049 | J31: 0.6469063163 | K31: 85.36585366
G32: 550 | H32: 271.9216201 | I32: 90.32460938 | J32: 0.6643429774 | K32: 85.9375
G33: 575 | H33: 266.7613481 | I33: 90.88026316 | J33: 0.6813600531 | K33: 86.46616541
B34: Mv | C34: 90 | D34: % | G34: 600 | H34: 261.8841297 | I34: 91.39565217 | J34: 0.6979854203 | K34: 86.95652174
G35: 625 | H35: 257.2649996 | I35: 91.875 | J35: 0.7142440686 | K35: 87.41258741
B36: Et' | C36: =IF(C40>0,C40,C19)/100*C38 -> 105.105 | D36: ft-lbs | G36: 650 | H36: 252.8819701 | I36: 92.32195946 | J36: 0.7301584958 | K36: 87.83783784
G37: 675 | H37: 248.71559 | I37: 92.73970588 | J37: 0.7457490372 | K37: 88.23529412
B38: Emax' | C38: =(IF(C23>0,C23,C3)-IF(C25>0,C25,C5))*IF(C24>0,C24,C4)/12 -> 136.5 | D38: ft-lbs | G38: 700 | H38: 244.7485799 | I38: 93.13101266 | J38: 0.7610341413 | K38: 88.60759494
G39: 725 | H39: 240.9655302 | I39: 93.49831288 | J39: 0.7760306032 | K39: 88.95705521
B40: CamE | C40: 77 | D40: % | G40: 750 | H40: 237.352649 | I40: 93.84375 | J40: 0.7907537614 | K40: 89.28571429

Sheet Poncelet
C2: Field point Penetration Predictions
C3: Et | E3: 97 | F3: ft.lbs | H3: KE-350 | I3: =C18*D18^2/450240 -> 22.82352941 | J3: ft.lbs
C4: Mv | E4: 800 | F4: grains | H4: KE-650 | I4: =C30*D30*D30/450240 -> 35.97195064 | J4: ft.lbs
C5: K | E5: 8e-07
C6: Projectile Dia | E6: 7.62 | F6: mm | H6: Area | I6: =PI()*(E6/2)^2 -> 45.60367312 | J6: mm2
E8: Soft Iron | F8: Bone | G8: Brick | H8: Soil | I8: Wood | J8: Rubber | K8: Flesh
C10: Strength | D10: N/mm2 | E10: 500 | F10: 170 | G10: 50 | H10: 5 | I10: 15 | J10: 9 | K10: 4
C11: Density | D11: g/cm3 | E11: 7.8 | F11: 2 | G11: 2 | H11: 1.2 | I11: 0.9 | J11: 1 | K11: 1
C13: Arrow mass | D13: Speed
C14: grains | D14: fps | E14: inches | N14: grams | O14: m/s | P14: KE(ft-lbs)
C16: 200 | D16: =(450240*$E$3/($E$4+C16+$E$5*C16^3))^0.5 -> 208.3159823 | E16: =100*($N16/(2*E$11*$I$6))*LOG((E$11*$O16^2+(E$10*1000))/(E$10*1000),2.7182818)/2.54 -> 0.04388063549 | F16: =100*($N16/(2*F$11*$I$6))*LOG((F$11*$O16^2+(F$10*1000))/(F$10*1000),2.7182818)/2.54 -> 0.1300183276 | G16: 0.4194837993 | H16: 3.164909785 | I16: 1.350741827 | J16: 2.077106084 | K16: 3.911709745 | N16: =C16*0.065 -> 13 | O16: =D16*12*2.54/100 -> 63.49471141 | P16: =C16*D16*D16/450240 -> 19.27662957
C17: =C16+25 -> 225 | D17: =(450240*$E$3/($E$4+C17+$E$5*C17^3))^0.5 -> 205.5057658 | E17: =100*($N17/(2*E$11*$I$6))*LOG((E$11*$O17^2+(E$10*1000))/(E$10*1000),2.7182818)/2.54 -> 0.04808131424 | F17: 0.1424379175 | G17: 0.4601506937 | H17: 3.490733907 | I17: 1.482875327 | J17: 2.284188033 | K17: 4.315176241 | N17: =C17*0.065 -> 14.625 | O17: =D17*12*2.54/100 -> 62.6381574 | P17: =C17*D17*D17/450240 -> 21.10505385
C18: =C17+25 -> 250 | D18: 202.7418643 | E18: 0.05203682885 | F18: 0.1541274495 | G18: 0.4985443163 | H18: 3.802358274 | I18: 1.607858711 | J18: 2.480858326 | K18: 4.701221183 | N18: 16.25 | O18: 61.79572023 | P18: 22.82352941
C19: 275 | D19: 200.0178165 | E19: 0.05575492233 | F19: 0.1651103548 | G19: 0.534729716 | H19: 4.099993535 | I19: 1.725881465 | J19: 2.667346929 | K19: 5.070095805 | N19: 17.875 | O19: 60.96543046 | P19: 24.43576737
C20: 300 | D20: 197.3280866 | E20: 0.05924249178 | F20: 0.1754075137 | G20: 0.5687646307 | H20: 4.383814395 | I20: 1.837111137 | J20: 2.843854562 | K20: 5.422007412 | N20: 19.5 | O20: 60.14560079 | P20: 25.94507846
C21: 325 | D21: 194.6679716 | E21: 0.06250579518 | F21: 0.1850378767 | G21: 0.6007013179 | H21: 4.653969119 | I21: 1.941698919 | J21: 3.010560344 | K21: 5.757130993 | N21: 21.125 | O21: 59.33479774 | P21: 27.35446923
C22: 350 | D22: 192.033519 | E22: 0.06555062633 | F22: 0.1940189892 | G22: 0.6305881142 | H22: 4.910587953 | I22: 2.039784431 | J22: 3.167628421 | K22: 6.075619507 | N22: 22.75 | O22: 58.53181659 | P22: 28.66672296
C23: 375 | D23: 189.4214528 | E23: 0.06838246189 | F23: 0.202367432 | G23: 0.6584707571 | H23: 5.153790536 | I23: 2.131499788 | J23: 3.315213685 | K23: 6.377612958 | N23: 24.375 | O23: 57.73565881 | P23: 29.88446727
C24: 400 | D24: 186.8291066 | E24: 0.07100658382 | F24: 0.2100991872 | G24: 0.6843934929 | H24: 5.383692399 | I24: 2.216973042 | J24: 3.453466657 | K24: 6.663246348 | N24: 26 | O24: 56.94551171 | P24: 31.01023018
C25: 425 | D25: 184.2543625 | E25: 0.07342817987 | F25: 0.2172299388 | G25: 0.7083999946 | H25: 5.600410596 | I25: 2.296331044 | J25: 3.582537629 | K25: 6.932656594 | N25: 27.625 | O25: 56.1607297 | P25: 32.04648587
C26: 450 | D26: 181.6955943 | E26: 0.07565242451 | F26: 0.2237753139 | G26: 0.7305341072 | H26: 5.804068522 | I26: 2.369701785 | J26: 3.702580086 | K26: 7.185988452 | N26: 29.25 | O26: 55.38081714 | P26: 32.99569128
C27: 475 | D27: 179.1516153 | E27: 0.07768454241 | F27: 0.229751072 | G27: 0.750840437 | H27: 5.994799969 | I27: 2.437216262 | J27: 3.813753499 | K27: 7.423399508 | N27: 30.875 | O27: 54.60541234 | P27: 33.86031472
C28: 500 | D28: 176.6216295 | E28: 0.07952985607 | F28: 0.2351732465 | G28: 0.7693647999 | H28: 6.172752448 | I28: 2.49900991 | J28: 3.916225513 | K28: 7.645064285 | N28: 32.5 | O28: 53.83427267 | P28: 34.64285714
C29: 525 | D29: 174.1051858 | E29: 0.08119381968 | F29: 0.2400582454 | G29: 0.786154543 | H29: 6.338089835 | I29: 2.555223644 | J29: 4.010173584 | K29: 7.851177521 | N29: 34.125 | O29: 53.06726063 | P29: 35.34586721
C30: 550 | D30: 171.6021353 | E30: 0.08268204044 | F30: 0.2444229144 | G30: 0.8012587527 | H30: 6.490994357 | I30: 2.606004545 | J30: 4.095786113 | K30: 8.041956643 | N30: 35.75 | O30: 52.30433083 | P30: 35.97195064
C31: 575 | D31: 169.1125912 | E31: 0.08400028916 | F31: 0.2482845679 | G31: 0.8147283618 | H31: 6.631667985 | I31: 2.651506225 | J31: 4.17326312 | K31: 8.217643513 | N31: 37.375 | O31: 51.54551778 | P31: 36.52377483
C32: 600 | D32: 166.6368912 | E32: 0.08515450141 | F32: 0.2516609923 | G32: 0.8266161691 | H32: 6.760333254 | I32: 2.691888921 | J32: 4.242816506 | K32: 8.378505479 | N32: 39 | O32: 50.79092444 | P32: 37.00406918
C33: 625 | D33: 164.1755628 | E33: 0.08615077075 | F33: 0.2545704257 | G33: 0.8369767824 | H33: 6.877233582 | I33: 2.727319338 | J33: 4.304669947 | K33: 8.524835803 | N33: 40.625 | O33: 50.04071155 | P33: 37.41562199
C34: 650 | D34: 161.7292905 | E34: 0.08699533528 | F34: 0.2570315177 | G34: 0.845866498 | H34: 6.982633108 | I34: 2.757970291 | J34: 4.359058468 | K34: 8.656953505 | N34: 42.25 | O34: 49.29508776 | P34: 37.76127448
C35: 675 | D35: 159.2988859 | E35: 0.08769455893 | F35: 0.2590632736 | G35: 0.8533431271 | H35: 7.076816124 | I35: 2.784020165 | J35: 4.406227739 | K35: 8.775202701 | N35: 43.875 | O35: 48.55430041 | P35: 38.04391247
C36: 700 | D36: 156.8852596 | E36: 0.08825490842 | F36: 0.2606849867 | G36: 0.8594657807 | H36: 7.160086136 | I36: 2.805652249 | J36: 4.446433152 | K36: 8.879951486 | N36: 45.5 | O36: 47.81862712 | P36: 38.26645627
C37: 725 | D37: 154.4893964 | E37: 0.08868292735 | F37: 0.2619161609 | G37: 0.8642946226 | H37: 7.232764616 | I37: 2.823053948 | J37: 4.479938709 | K37: 8.971590432 | N37: 47.125 | O37: 47.08836803 | P37: 38.43184939
C38: 750 | D38: 152.1123321 | E38: 0.08898520812 | F38: 0.262776428 | G38: 0.8678906002 | H38: 7.295189488 | I38: 2.836415926 | J38: 4.50701576 | K38: 9.050530762 | N38: 48.75 | O38: 46.36383884 | P38: 38.54304636
C39: 775 | D39: 149.7551326 | E39: 0.0891683628 | F39: 0.2632854617 | G39: 0.870315162 | H39: 7.347713412 | I39: 2.845931196 | J39: 4.527941656 | K39: 9.117202258 | N39: 50.375 | O39: 45.64536442 | P39: 38.60300017
C40: 800 | D40: 147.4188755 | E40: 0.08923899365 | F40: 0.2634628908 | G40: 0.8716299692 | H40: 7.390701901 | I40: 2.851794185 | J40: 4.542998327 | K40: 9.172050967 | N40: 52 | O40: 44.93327324 | P40: 38.61464968
C41: 825 | D41: 145.1046338 | E41: 0.08920366406 | F41: 0.2633282136 | G41: 0.8718966088 | H41: 7.424531327 | I41: 2.854199794 | J41: 4.552470833 | K41: 9.215536769 | N41: 53.625 | O41: 44.22789237 | P41: 38.58090721
C42: 850 | D42: 142.8134618 | E42: 0.08906887048 | F42: 0.2629007153 | G42: 0.871176313 | H42: 7.449586855 | I42: 2.853342478 | J42: 4.556645913 | K42: 9.248130844 | N42: 55.25 | O42: 43.52954315 | P42: 38.50464671
C43: 875 | D43: 140.5463826 | E43: 0.08884101576 | F43: 0.2621993903 | G43: 0.8695296911 | H43: 7.466260355 | I43: 2.849415353 | J43: 4.555810568 | K43: 9.270313106 | N43: 56.875 | O43: 42.83853741 | P43: 38.38869258
C44: 900 | D44: 138.3043778 | E44: 0.08852638451 | F44: 0.2612428695 | G44: 0.8670164779 | H44: 7.474948315 | I44: 2.842609354 | J44: 4.55025069 | K44: 9.282569638 | N44: 58.5 | O44: 42.15517435 | P44: 38.23580939
C46: 800 | D46: 225 | E46: =100*($N46/(2*E$11*$I$6))*LOG((E$11*$O46^2+(E$10*1000))/(E$10*1000),2.7182818)/2.54 -> 0.2037507872 | F46: 0.6044199964 | G46: 1.934619057 | H46: 14.13250181 | I46: 6.199394885 | J46: 9.436451653 | K46: 17.44951647 | N46: =C46*0.065 -> 52 | O46: =D46*12*2.54/100 -> 68.58 | P46: =C46*D46*D46/450240 -> 89.95202559
AB47: #1 | AC47: #2 | AD47: #3 | AE47: #4 | AF47: #5 | AG47: #6
D48: 7.5 | E48: 9.5 | F48: 11.5 | G48: 16 | H48: 19 | I48: 20.5 | AB48: 7.5" | AC48: 9.5" | AD48: 11.5" | AE48: 16" | AF48: 19" | AG48: 20.5"
C49: 250 | D49: 287 | K49: =$C49*D49^2/450240 -> 45.73616294 | R49: =$C49*D49*2/450240 -> 0.3187189055 | Z49: Arrow Weight | AA49: =C49 -> 250 | AB49: =D49 & " (" & ROUND(K49,0) & "/" & ROUND(R49,2) & ")" -> 287 (46/0.32)
C50: 300 | D50: 250 | E50: 300 | K50: =$C50*D50^2/450240 -> 41.64445629 | L50: =$C50*E50^2/450240 -> 59.96801706 | R50: =$C50*D50*2/450240 -> 0.3331556503 | S50: =$C50*E50*2/450240 -> 0.3997867804 | AA50: 300 | AB50: 250 (42/0.33) | AC50: =E50 & " (" & ROUND(L50,0) & "/" & ROUND(S50,2) & ")" -> 300 (60/0.4)
C51: 350 | D51: 222 | E51: 265 | F51: 310 | K51: 38.31156716 | L51: 54.5903296 | M51: 74.70460199 | R51: 0.3451492537 | S51: 0.4120024876 | T51: 0.4819651741 | AA51: 350 | AB51: 222 (38/0.35) | AC51: 265 (55/0.41) | AD51: =F51 & " (" & ROUND(M51,0) & "/" & ROUND(T51,2) & ")" -> 310 (75/0.48)
C52: 400 | D52: 202 | E52: 240 | F52: 277 | K52: 36.25088842 | L52: 51.17270789 | M52: 68.16719972 | R52: 0.3589196873 | S52: 0.4264392324 | T52: 0.4921819474 | AA52: 400 | AB52: 202 (36/0.36) | AC52: 240 (51/0.43) | AD52: 277 (68/0.49)
C53: 450 | D53: 187 | E53: 220 | F53: 253 | K53: 34.95035981 | L53: 48.37420043 | M53: 63.97488006 | R53: 0.3738006397 | S53: 0.4397654584 | T53: 0.5057302772 | AA53: 450 | AB53: 187 (35/0.37) | AC53: 220 (48/0.44) | AD53: 253 (64/0.51)
C54: 500 | D54: 174 | E54: 204 | F54: 234 | G54: 303 | K54: 33.62206823 | L54: 46.21535181 | M54: 60.8075693 | N54: 101.9556237 | R54: 0.3864605544 | S54: 0.4530916844 | T54: 0.5197228145 | U54: 0.6729744136 | AA54: 500 | AB54: 174 (34/0.39) | AC54: 204 (46/0.45) | AD54: 234 (61/0.52) | AE54: =G54 & " (" & ROUND(N54,0) & "/" & ROUND(U54,2) & ")" -> 303 (102/0.67)
C55: 550 | D55: 164 | E55: 191 | F55: 218 | G55: 280 | K55: 32.85536603 | L55: 44.56412136 | M55: 58.05392679 | N55: 95.77114428 | R55: 0.4006751955 | S55: 0.4666400142 | T55: 0.532604833 | U55: 0.684079602 | AA55: 550 | AB55: 164 (33/0.4) | AC55: 191 (45/0.47) | AD55: 218 (58/0.53) | AE55: 280 (96/0.68)
C56: 600 | D56: 156 | E56: 180 | F56: 205 | G56: 261 | K56: 32.43070362 | L56: 43.17697228 | M56: 56.00346482 | N56: 90.77958422 | R56: 0.4157782516 | S56: 0.4797441365 | T56: 0.5463752665 | U56: 0.6956289979 | AA56: 600 | AB56: 156 (32/0.42) | AC56: 180 (43/0.48) | AD56: 205 (56/0.55) | AE56: 261 (91/0.7)
C57: 650 | E57: 172 | F57: 195 | G57: 246 | H57: 281 | L57: 42.70966596 | M57: 54.89572228 | N57: 87.36540512 | O57: 113.993981 | S57: 0.4966240227 | T57: 0.563033049 | U57: 0.7102878465 | V57: 0.8113450604 | AA57: 650 | AC57: 172 (43/0.5) | AD57: 195 (55/0.56) | AE57: 246 (87/0.71) | AF57: =H57 & " (" & ROUND(O57,0) & "/" & ROUND(V57,2) & ")" -> 281 (114/0.81)
C58: 700 | F58: 185 | G58: 233 | H58: 265 | M58: 53.21050995 | N58: 84.4045398 | O58: 109.1806592 | T58: 0.5752487562 | U58: 0.7245024876 | V58: 0.8240049751 | AA58: 700 | AD58: 185 (53/0.58) | AE58: 233 (84/0.72) | AF58: 265 (109/0.82)
C59: 750 | F59: 177 | G59: 222 | H59: 251 | I59: 265 | M59: 52.18716684 | N59: 82.09621535 | O59: 104.9456956 | P59: 116.9792777 | T59: 0.5896855011 | U59: 0.7396055437 | V59: 0.8362206823 | W59: 0.8828624733 | AA59: 750 | AD59: 177 (52/0.59) | AE59: 222 (82/0.74) | AF59: 251 (105/0.84) | AG59: =I59 & " (" & ROUND(P59,0) & "/" & ROUND(W59,2) & ")" -> 265 (117/0.88)
C60: 800 | F60: 170 | G60: 212 | H60: 239 | I60: 254 | M60: 51.3503909 | N60: 79.85785359 | O60: 101.4943141 | P60: 114.633973 | T60: 0.6041222459 | U60: 0.7533759773 | V60: 0.8493248045 | W60: 0.9026297086 | AA60: 800 | AD60: 170 (51/0.6) | AE60: 212 (80/0.75) | AF60: 239 (101/0.85) | AG60: 254 (115/0.9)
C61: 850 | G61: 203 | H61: 229 | I61: 242 | N61: 77.7977301 | O61: 99.00242093 | P61: 110.5619225 | U61: 0.7664800995 | V61: 0.8646499645 | W61: 0.9137348969 | AA61: 850 | AE61: 203 (78/0.77) | AF61: 229 (99/0.86) | AG61: 242 (111/0.91)
C62: 900 | G62: 195 | H62: 220 | I62: 232 | N62: 76.00946162 | O62: 96.74840085 | P62: 107.5906183 | U62: 0.7795842217 | V62: 0.8795309168 | W62: 0.9275053305 | AA62: 900 | AE62: 195 (76/0.78) | AF62: 220 (97/0.88) | AG62: 232 (108/0.93)
C63: 950 | G63: 188 | H63: 212 | I63: 223 | N63: 74.5753376 | O63: 94.83120114 | P63: 104.9274831 | U63: 0.7933546553 | V63: 0.894633973 | W63: 0.9410536603 | AA63: 950 | AE63: 188 (75/0.79) | AF63: 212 (95/0.89) | AG63: 223 (105/0.94)
C64: 1000 | G64: 182 | H64: 204 | I64: 215 | N64: 73.56965174 | O64: 92.43070362 | P64: 102.6674662 | U64: 0.8084577114 | V64: 0.9061833689 | W64: 0.9550461976 | AA64: 1000 | AE64: 182 (74/0.81) | AF64: 204 (92/0.91) | AG64: 215 (103/0.96)
C65: 1100 | G65: 171 | H65: 191 | I65: 202 | N65: 71.43989872 | O65: 89.12824271 | P65: 99.68994314 | U65: 0.835554371 | V65: 0.9332800284 | W65: 0.98702914 | AA65: 1100 | AE65: 171 (71/0.84) | AF65: 191 (89/0.93) | AG65: 202 (100/0.99)
C66: 1200 | H66: 181 | I66: 190 | N66: 0 | O66: 87.31609808 | P66: 96.21535181 | V66: 0.9648187633 | W66: 1.012793177 | AA66: 1200 | AF66: 181 (87/0.96) | AG66: 190 (96/1.01)
AD71: 1000 | AE71: 215 | AF71: =AD71*AE71^2/450240 -> 102.6674662 | AG71: 1200 | AH71: =(AF71*450240/AG71)^0.5 -> 196.2672498
AD72: 1000 | AE72: 215 | AF72: =AD72*AE72*2/450240 -> 0.9550461976 | AG72: 1200 | AH72: =(AF72*450240/AG72)/2 -> 179.1666667
